Workbook

Sheet Read me - LAs
C8: JBA Strategic Flood Risk Assessment Site Screening Tool - v1.0
C10: This spreadsheet has been designed to assist local authorities with the selection of development sites for inclusion within their local plan.
C12: Note on calculations:
C13: Site boundaries have been screened against flood risk information to determine the proportion of the site at risk. The following flood risk information has been used in the assessment ● Flood Zones (from Environment Agency Flood Zones and results from detailed hydraulic models) ● Surface Water (from the updated Flood Map for Surface Water) ● Environment Agency's Historic Flood Map ● Reservoirs (from the National Reservoir Inundation Mapping)
C15: Additional information:
C16: The sites have also been considered against the following information to provide additional information to support decision making ● Canal centrelines - to determine if there is a canal within 100m of the site ● Environment Agency's Areas Benefitting from Defences dataset - to determine if the site benefits from formal flood defences ● Detailed River Network dataset - to determine if their is a watercourse with a catchment less than 3km2 flowing through or adjacent to a site, which would not have been included in the Environment Agency's Flood Zones ● Whether any additional modelling is required to determine Flood Zones for the Level 2 Strategic Flood Risk Assessment
C18: Note on Flood Zone and Surface Water percentages:
C19: The values quoted in the Level 1 Screening tab show the percentage of the site at flood risk from that particular Flood Zone / event, excluding the percentage of the site at flood risk at a higher zone. For example 50% of a site is in the Flood Zones. Taking each Flood Zone individually, 50% is in Flood Zone 2 but only 30% is in Flood Zone 3a and only 10% is in Flood Zone 3b. In the Level 1 Screening tab this will be displayed as 10% in Flood Zone 3b, 20% in Flood Zone 3a (as this excludes the 10% in Flood Zone 3b), 20% in Flood Zone 2 (as this excludes the 10% in Flood Zone 3b and 20% in Flood Zone 3a) and 50% in Flood Zone 1.
C21: Using the spreadsheet
C22: The spreadsheet has been designed to assist the selection of sites. A number of screening options are available at the top of the Level 1 Screening tab. Each option will allow sites to be screened against a user defined value. For example To select sites that are more than 50% in Flood Zone 2, click on 'Screen sites against a user-defined % in Flood Zone 2' icon, and enter 50 (do not include a % sign) when prompted.

Sheet Level 1 Screening
A8: HELAA ref | B8: Site Name | C8: Area (ha) | D8: Proportion of site shown to be at risk (%) | Y8: Tidally influenced Drainage Risk Zone (maximum risk) | Z8: Tidally influenced Groundwater Risk Zone (maximum risk)
D9: Flood Zones | H9: Climate Change Allowances for the 1 in 100 year fluvial event | L9: Climate chanage for the 1 in 200 tidal event (2115 EPOCH) | N9: EA Risk of flooding from surface water | Q9: Climate change for the EA Risk of flooding from surface water | V9: JBA Groundwater Flood Map (depth of water level below ground surface in 100 year event)
D10: FZ1 | E10: FZ2 | F10: FZ 3a | G10: FZ3b | H10: FZ2 (where used as a proxy) | I10: 100 year +35% | J10: 100 year +45% | K10: 100 year +105% | L10: Higher Central | M10: Upper End | N10: 30yr | O10: 100 year | P10: 1000 year | Q10: 100 year +20% | R10: 100 year +30% | S10: 100 year +40% | T10: EA Historic flood map | U10: EA Reservoir inundation | V10: 0- 0.025m | W10: 0.025- 0.05m | X10: Number of recorded flood incidents within 50m (WSCC)
A11: WB08162 | B11: Worthing United Football Club | C11: 1.460994721 | D11: =Calculations!R2 -> 1 | E11: =Calculations!Q2 -> 0 | F11: =Calculations!M2 -> 0 | G11: =Calculations!I2 -> 0 | H11: =Calculations!AH2 -> 0 | I11: =Calculations!AJ2 -> 0 | J11: =Calculations!AL2 -> 0 | K11: =Calculations!AN2 -> 0 | L11: =Calculations!AO2 -> 0 | M11: =Calculations!AR2 -> 0 | N11: =Calculations!AX2 -> 0.02354560185 | O11: =Calculations!AZ2 -> 0.02847375107 | P11: =Calculations!BB2 -> 0.040246552 | Q11: =Calculations!Y2 -> 0.03230675602 | R11: =Calculations!AB2 -> 0.03394947243 | S11: =Calculations!AE2 -> 0.0342232585 | T11: =Calculations!T2 -> 0 | U11: =Calculations!W2 -> 0 | V11: =Calculations!AT2 -> 0 | W11: =Calculations!AV2 -> 0 | X11: =Calculations!U2 -> 0 | Y11: =Calculations!BC2 -> 0 | Z11: =Calculations!BD2 -> 0
A12: WB08176 | B12: Land North of Beeches Avenue | C12: 2.829801781 | D12: =Calculations!R3 -> 1 | E12: =Calculations!Q3 -> 0 | F12: =Calculations!M3 -> 0 | G12: =Calculations!I3 -> 0 | H12: =Calculations!AH3 -> 0 | I12: =Calculations!AJ3 -> 0 | J12: =Calculations!AL3 -> 0 | K12: =Calculations!AN3 -> 0 | L12: =Calculations!AP3 -> 0 | M12: =Calculations!AR3 -> 0 | N12: =Calculations!AX3 -> 0 | O12: =Calculations!AZ3 -> 0.003533816421 | P12: =Calculations!BB3 -> 0.007069135973 | Q12: =Calculations!Y3 -> 0.003686213513 | R12: =Calculations!AB3 -> 0.003968918827 | S12: =Calculations!AE3 -> 0.003968918827 | T12: =Calculations!T3 -> 0 | U12: =Calculations!W3 -> 0 | V12: =Calculations!AT3 -> 0 | W12: =Calculations!AV3 -> 0 | X12: =Calculations!U3 -> 0 | Y12: =Calculations!BC3 -> 0 | Z12: =Calculations!BD3 -> 0
A13: WB08163 | B13: Land South of Upper Brighton Road | C13: 5.825191904 | D13: =Calculations!R4 -> 1 | E13: =Calculations!Q4 -> 0 | F13: =Calculations!M4 -> 0 | G13: =Calculations!I4 -> 0 | H13: =Calculations!AH4 -> 0 | I13: =Calculations!AJ4 -> 0 | J13: =Calculations!AL4 -> 0 | K13: =Calculations!AN4 -> 0 | L13: =Calculations!AP4 -> 0 | M13: =Calculations!AR4 -> 0 | N13: =Calculations!AX4 -> 0 | O13: =Calculations!AZ4 -> 0.00569938305 | P13: =Calculations!BB4 -> 0.03572357797 | Q13: =Calculations!Y4 -> 0.007828068286 | R13: =Calculations!AB4 -> 0.01034056749 | S13: =Calculations!AE4 -> 0.01207109078 | T13: =Calculations!T4 -> 0 | U13: =Calculations!W4 -> 0 | V13: =Calculations!AT4 -> 0.3491244284 | W13: =Calculations!AV4 -> 0.278942341 | X13: =Calculations!U4 -> 0 | Y13: =Calculations!BC4 -> 2 | Z13: =Calculations!BD4 -> 4
A14: WB08183 | B14: Land Site West of Fulbeck Avenue | C14: 2.001757117 | D14: =Calculations!R5 -> 0.7 | E14: =Calculations!Q5 -> 0.055 | F14: =Calculations!M5 -> 0.195 | G14: =Calculations!I5 -> 0.05 | H14: =Calculations!AH5 -> 0.3007766647 | I14: =Calculations!AJ5 -> 0.2675377289 | J14: =Calculations!AL5 -> 0.2848408169 | K14: =Calculations!AN5 -> 0.4104199157 | L14: =Calculations!AP5 -> 0 | M14: =Calculations!AR5 -> 0 | N14: =Calculations!AX5 -> 0.2518337145 | O14: =Calculations!AZ5 -> 0.3030937144 | P14: =Calculations!BB5 -> 0.5290725617 | Q14: =Calculations!Y5 -> 0.3616017028 | R14: =Calculations!AB5 -> 0.4065901296 | S14: =Calculations!AE5 -> 0.449010764 | T14: =Calculations!T5 -> 0 | U14: =Calculations!W5 -> 0 | V14: =Calculations!AT5 -> 0.3563129819 | W14: =Calculations!AV5 -> 0 | X14: =Calculations!U5 -> 0 | Y14: =Calculations!BC5 -> 0 | Z14: =Calculations!BD5 -> 0
A15: (Part of) WB08036 | B15: (Part of) Phase 1 West Durrington | C15: 6.981937832 | D15: =Calculations!R6 -> 0.9785100287 | E15: =Calculations!Q6 -> 0.001432664756 | F15: =Calculations!M6 -> 0.004297994269 | G15: =Calculations!I6 -> 0.01575931232 | H15: =Calculations!AH6 -> 0.0213268093 | I15: =Calculations!AJ6 -> 0.02080179104 | J15: =Calculations!AL6 -> 0.02097366309 | K15: =Calculations!AN6 -> 0.03491782351 | L15: =Calculations!AP6 -> 0 | M15: =Calculations!AR6 -> 0 | N15: =Calculations!AX6 -> 0.03700028151 | O15: =Calculations!AZ6 -> 0.06458795062 | P15: =Calculations!BB6 -> 0.2161267154 | Q15: =Calculations!Y6 -> 0.06464920934 | R15: =Calculations!AB6 -> 0.06513745075 | S15: =Calculations!AE6 -> 0.06816750507 | T15: =Calculations!T6 -> 0 | U15: =Calculations!W6 -> 0 | V15: =Calculations!AT6 -> 0.01503472584 | W15: =Calculations!AV6 -> 0 | X15: =Calculations!U6 -> 0 | Y15: =Calculations!BC6 -> 0 | Z15: =Calculations!BD6 -> 0
A16: WB08046 | B16: Bus Depot, Library Place | C16: 0.672703598 | D16: =Calculations!R7 -> 0.552238806 | E16: =Calculations!Q7 -> 0.2388059701 | F16: =Calculations!M7 -> 0.1492537313 | G16: =Calculations!I7 -> 0.05970149254 | H16: =Calculations!AH7 -> 0.4516140078 | I16: =Calculations!AJ7 -> 0 | J16: =Calculations!AL7 -> 0 | K16: =Calculations!AN7 -> 0 | L16: =Calculations!AP7 -> 1.000000195 | M16: =Calculations!AR7 -> 1.000000195 | N16: =Calculations!AX7 -> 0 | O16: =Calculations!AZ7 -> 0 | P16: =Calculations!BB7 -> 0.04307014625 | Q16: =Calculations!Y7 -> 0.003659509579 | R16: =Calculations!AB7 -> 0.005768391048 | S16: =Calculations!AE7 -> 0.01046404538 | T16: =Calculations!T7 -> 0 | U16: =Calculations!W7 -> 0 | V16: =Calculations!AT7 -> 0 | W16: =Calculations!AV7 -> 0.07668407937 | X16: =Calculations!U7 -> 0 | Y16: =Calculations!BC7 -> 2 | Z16: =Calculations!BD7 -> 2
A17: WB08180 and part of WB08045 | B17: Grafton MSCP and part of Land at 51-93 Montague Street | C17: 0.7660365785 | D17: =Calculations!R8 -> 0.1558441558 | E17: =Calculations!Q8 -> 0.1298701299 | F17: =Calculations!M8 -> 0.03896103896 | G17: =Calculations!I8 -> 0.6753246753 | H17: =Calculations!AH8 -> 0.8548984666 | I17: =Calculations!AJ8 -> 0 | J17: =Calculations!AL8 -> 0 | K17: =Calculations!AN8 -> 0 | L17: =Calculations!AP8 -> 0.9999995593 | M17: =Calculations!AR8 -> 0.9999995593 | N17: =Calculations!AX8 -> 0 | O17: =Calculations!AZ8 -> 0.05378333249 | P17: =Calculations!BB8 -> 0.2240151841 | Q17: =Calculations!Y8 -> 0.07089124246 | R17: =Calculations!AB8 -> 0.07924593488 | S17: =Calculations!AE8 -> 0.0957139482 | T17: =Calculations!T8 -> 0 | U17: =Calculations!W8 -> 0 | V17: =Calculations!AT8 -> 0 | W17: =Calculations!AV8 -> 0 | X17: =Calculations!U8 -> 0 | Y17: =Calculations!BC8 -> 3 | Z17: =Calculations!BD8 -> 2
A18: WB08042 (plus area of parking to east) | B18: Police Station Site (plus area of parking to east) | C18: 0.6014365072 | D18: =Calculations!R9 -> 1 | E18: =Calculations!Q9 -> 0 | F18: =Calculations!M9 -> 0 | G18: =Calculations!I9 -> 0 | H18: =Calculations!AH9 -> 0 | I18: =Calculations!AJ9 -> 0 | J18: =Calculations!AL9 -> 0 | K18: =Calculations!AN9 -> 0 | L18: =Calculations!AP9 -> 0 | M18: =Calculations!AR9 -> 0 | N18: =Calculations!AX9 -> 0 | O18: =Calculations!AZ9 -> 0.02194745388 | P18: =Calculations!BB9 -> 0.02194745388 | Q18: =Calculations!Y9 -> 0.02527282567 | R18: =Calculations!AB9 -> 0.02926327183 | S18: =Calculations!AE9 -> 0.03325371799 | T18: =Calculations!T9 -> 0 | U18: =Calculations!W9 -> 0 | V18: =Calculations!AT9 -> 0 | W18: =Calculations!AV9 -> 0.4230137694 | X18: =Calculations!U9 -> 0 | Y18: =Calculations!BC9 -> 0 | Z18: =Calculations!BD9 -> 0
A19: WB08048 | B19: Gas Holder Station, Lyndhurst Road | C19: 1.148889196 | D19: =Calculations!R10 -> 1 | E19: =Calculations!Q10 -> 0 | F19: =Calculations!M10 -> 0 | G19: =Calculations!I10 -> 0 | H19: =Calculations!AH10 -> 0 | I19: =Calculations!AJ10 -> 0 | J19: =Calculations!AL10 -> 0 | K19: =Calculations!AN10 -> 0 | L19: =Calculations!AP10 -> 0 | M19: =Calculations!AR10 -> 0 | N19: =Calculations!AX10 -> 0 | O19: =Calculations!AZ10 -> 0 | P19: =Calculations!BB10 -> 0.02471952919 | Q19: =Calculations!Y10 -> 0 | R19: =Calculations!AB10 -> 0 | S19: =Calculations!AE10 -> 0 | T19: =Calculations!T10 -> 0 | U19: =Calculations!W10 -> 0 | V19: =Calculations!AT10 -> 0 | W19: =Calculations!AV10 -> 0.99999999 | X19: =Calculations!U10 -> 0 | Y19: =Calculations!BC10 -> 0 | Z19: =Calculations!BD10 -> 0
A20: WB08058 & WB08038 | B20: Land Rear of Juno Close & Land Former Sewage Works, Barrington Road | C20: 3.033716926 | D20: =Calculations!R11 -> 1 | E20: =Calculations!Q11 -> 0 | F20: =Calculations!M11 -> 0 | G20: =Calculations!I11 -> 0 | H20: =Calculations!AH11 -> 0 | I20: =Calculations!AJ11 -> 0 | J20: =Calculations!AL11 -> 0 | K20: =Calculations!AN11 -> 0 | L20: =Calculations!AP11 -> 0 | M20: =Calculations!AR11 -> 0 | N20: =Calculations!AX11 -> 0 | O20: =Calculations!AZ11 -> 0.01938216433 | P20: =Calculations!BB11 -> 0.1189300152 | Q20: =Calculations!Y11 -> 0.03507248784 | R20: =Calculations!AB11 -> 0.04641171324 | S20: =Calculations!AE11 -> 0.05524576093 | T20: =Calculations!T11 -> 0 | U20: =Calculations!W11 -> 0 | V20: =Calculations!AT11 -> 0 | W20: =Calculations!AV11 -> 0.9999998253 | X20: =Calculations!U11 -> 0 | Y20: =Calculations!BC11 -> 0 | Z20: =Calculations!BD11 -> 0
A21: WB08059 | B21: Land Site Decoy Farm, Dominion Way | C21: 7.356721215 | D21: =Calculations!R12 -> 0.8355978261 | E21: =Calculations!Q12 -> 0.03260869565 | F21: =Calculations!M12 -> 0 | G21: =Calculations!I12 -> 0.1317934783 | H21: =Calculations!AH12 -> 0.1646731835 | I21: =Calculations!AJ12 -> 0 | J21: =Calculations!AL12 -> 0 | K21: =Calculations!AN12 -> 0 | L21: =Calculations!AP12 -> 0 | M21: =Calculations!AR12 -> 0 | N21: =Calculations!AX12 -> 0.02350152223 | O21: =Calculations!AZ12 -> 0.06877553853 | P21: =Calculations!BB12 -> 0.1675998429 | Q21: =Calculations!Y12 -> 0.08185007935 | R21: =Calculations!AB12 -> 0.08873687597 | S21: =Calculations!AE12 -> 0.09691822944 | T21: =Calculations!T12 -> 0 | U21: =Calculations!W12 -> 0 | V21: =Calculations!AT12 -> 0.121870177 | W21: =Calculations!AV12 -> 0.01461248794 | X21: =Calculations!U12 -> 0 | Y21: =Calculations!BC12 -> 4 | Z21: =Calculations!BD12 -> 4
A22: WB13002 | B22: Inland Revenue Office, Durrington | C22: 6.730725356 | D22: =Calculations!R13 -> 1 | E22: =Calculations!Q13 -> 0 | F22: =Calculations!M13 -> 0 | G22: =Calculations!I13 -> 0 | H22: =Calculations!AH13 -> 0 | I22: =Calculations!AJ13 -> 0 | J22: =Calculations!AL13 -> 0 | K22: =Calculations!AN13 -> 0 | L22: =Calculations!AP13 -> 0 | M22: =Calculations!AR13 -> 0 | N22: =Calculations!AX13 -> 0.002793161064 | O22: =Calculations!AZ13 -> 0.03092257044 | P22: =Calculations!BB13 -> 0.147211322 | Q22: =Calculations!Y13 -> 0.04744945422 | R22: =Calculations!AB13 -> 0.05971348452 | S22: =Calculations!AE13 -> 0.07244112159 | T22: =Calculations!T13 -> 0 | U22: =Calculations!W13 -> 0 | V22: =Calculations!AT13 -> 0 | W22: =Calculations!AV13 -> 0.9999998427 | X22: =Calculations!U13 -> 0 | Y22: =Calculations!BC13 -> 0 | Z22: =Calculations!BD13 -> 0
A23: WB16006 | B23: Centenary House | C23: 4.106715221 | D23: =Calculations!R14 -> 1 | E23: =Calculations!Q14 -> 0 | F23: =Calculations!M14 -> 0 | G23: =Calculations!I14 -> 0 | H23: =Calculations!AH14 -> 0 | I23: =Calculations!AJ14 -> 0 | J23: =Calculations!AL14 -> 0 | K23: =Calculations!AN14 -> 0 | L23: =Calculations!AP14 -> 0 | M23: =Calculations!AR14 -> 0 | N23: =Calculations!AX14 -> 0.00401283737 | O23: =Calculations!AZ14 -> 0.06301313894 | P23: =Calculations!BB14 -> 0.525318378 | Q23: =Calculations!Y14 -> 0.1728137793 | R23: =Calculations!AB14 -> 0.2387966958 | S23: =Calculations!AE14 -> 0.2915334255 | T23: =Calculations!T14 -> 0.9877282458 | U23: =Calculations!W14 -> 0 | V23: =Calculations!AT14 -> 1.000000063 | W23: =Calculations!AV14 -> 0 | X23: =Calculations!U14 -> 0 | Y23: =Calculations!BC14 -> 0 | Z23: =Calculations!BD14 -> 0
A24: WB08054 | B24: Worthing Leisure Centre, Shaftesbury Avenue | C24: 6.812413633 | D24: =Calculations!R15 -> 1 | E24: =Calculations!Q15 -> 0 | F24: =Calculations!M15 -> 0 | G24: =Calculations!I15 -> 0 | H24: =Calculations!AH15 -> 0 | I24: =Calculations!AJ15 -> 0 | J24: =Calculations!AL15 -> 0 | K24: =Calculations!AN15 -> 0 | L24: =Calculations!AP15 -> 0 | M24: =Calculations!AR15 -> 0 | N24: =Calculations!AX15 -> 0.005933285407 | O24: =Calculations!AZ15 -> 0.05396954672 | P24: =Calculations!BB15 -> 0.1849453644 | Q24: =Calculations!Y15 -> 0.08043409808 | R24: =Calculations!AB15 -> 0.09465857586 | S24: =Calculations!AE15 -> 0.10361807 | T24: =Calculations!T15 -> 0 | U24: =Calculations!W15 -> 0 | V24: =Calculations!AT15 -> 0 | W24: =Calculations!AV15 -> 1.000000061 | X24: =Calculations!U15 -> 0 | Y24: =Calculations!BC15 -> 0 | Z24: =Calculations!BD15 -> 0
A25: (Includes) WB08044 | B25: (Includes) Land South of Stoke Abbott Road | C25: 0.4842268888 | D25: =Calculations!R16 -> 1 | E25: =Calculations!Q16 -> 0 | F25: =Calculations!M16 -> 0 | G25: =Calculations!I16 -> 0 | H25: =Calculations!AH16 -> 0 | I25: =Calculations!AJ16 -> 0 | J25: =Calculations!AL16 -> 0 | K25: =Calculations!AN16 -> 0 | L25: =Calculations!AP16 -> 0 | M25: =Calculations!AR16 -> 0 | N25: =Calculations!AX16 -> 0 | O25: =Calculations!AZ16 -> 0 | P25: =Calculations!BB16 -> 0 | Q25: =Calculations!Y16 -> 0 | R25: =Calculations!AB16 -> 0 | S25: =Calculations!AE16 -> 0 | T25: =Calculations!T16 -> 0 | U25: =Calculations!W16 -> 0 | V25: =Calculations!AT16 -> 0 | W25: =Calculations!AV16 -> 1.000000446 | X25: =Calculations!U16 -> 0 | Y25: =Calculations!BC16 -> 0 | Z25: =Calculations!BD16 -> 0
A26: WB08039 | B26: Teville Gate, Railway Approach | C26: 1.752553969 | D26: =Calculations!R17 -> 1 | E26: =Calculations!Q17 -> 0 | F26: =Calculations!M17 -> 0 | G26: =Calculations!I17 -> 0 | H26: =Calculations!AH17 -> 0 | I26: =Calculations!AJ17 -> 0 | J26: =Calculations!AL17 -> 0 | K26: =Calculations!AN17 -> 0 | L26: =Calculations!AP17 -> 0 | M26: =Calculations!AR17 -> 0 | N26: =Calculations!AX17 -> 0.3299628737 | O26: =Calculations!AZ17 -> 0.4837416345 | P26: =Calculations!BB17 -> 0.7267522602 | Q26: =Calculations!Y17 -> 0.518321139 | R26: =Calculations!AB17 -> 0.5345942462 | S26: =Calculations!AE17 -> 0.5731799767 | T26: =Calculations!T17 -> 0 | U26: =Calculations!W17 -> 0 | V26: =Calculations!AT17 -> 0 | W26: =Calculations!AV17 -> 0.9999998558 | X26: =Calculations!U17 -> 0 | Y26: =Calculations!BC17 -> 3 | Z26: =Calculations!BD17 -> 0
A27: (Part of) WB08138 | B27: Caravan Club | C27: 2.550144438 | D27: =Calculations!R18 -> 1 | E27: =Calculations!Q18 -> 0 | F27: =Calculations!M18 -> 0 | G27: =Calculations!I18 -> 0 | H27: =Calculations!AH18 -> 0 | I27: =Calculations!AJ18 -> 0 | J27: =Calculations!AL18 -> 0 | K27: =Calculations!AN18 -> 0 | L27: =Calculations!AP18 -> 0 | M27: =Calculations!AR18 -> 0 | N27: =Calculations!AX18 -> 0 | O27: =Calculations!AZ18 -> 0.003921346514 | P27: =Calculations!BB18 -> 0.03136914083 | Q27: =Calculations!Y18 -> 0.0111366241 | R27: =Calculations!AB18 -> 0.01333257815 | S27: =Calculations!AE18 -> 0.01474426289 | T27: =Calculations!T18 -> 0 | U27: =Calculations!W18 -> 0 | V27: =Calculations!AT18 -> 0.180753435 | W27: =Calculations!AV18 -> 0 | X27: =Calculations!U18 -> 0 | Y27: =Calculations!BC18 -> 0 | Z27: =Calculations!BD18 -> 0
A28: N/A | B28: Local Green Space (LGS): Goring-Ferring Gap | C28: 30.1487974 | D28: =Calculations!R19 -> 0.9572139303 | E28: =Calculations!Q19 -> 0.04245439469 | F28: =Calculations!M19 -> 0.0003316749585 | G28: =Calculations!I19 -> 0 | H28: =Calculations!AH19 -> 0.04265316919 | I28: =Calculations!AJ19 -> 0 | J28: =Calculations!AL19 -> 0 | K28: =Calculations!AN19 -> 0 | L28: =Calculations!AP19 -> 0.02755446036 | M28: =Calculations!AR19 -> 0.03410681444 | N28: =Calculations!AX19 -> 0.00357056988 | O28: =Calculations!AZ19 -> 0.009886176161 | P28: =Calculations!BB19 -> 0.08425360931 | Q28: =Calculations!Y19 -> 0.0183447371 | R28: =Calculations!AB19 -> 0.02344262073 | S28: =Calculations!AE19 -> 0.02965455278 | T28: =Calculations!T19 -> 0 | U28: =Calculations!W19 -> 0 | V28: =Calculations!AT19 -> 0 | W28: =Calculations!AV19 -> 0.913874192 | X28: =Calculations!U19 -> 0 | Y28: =Calculations!BC19 -> 2 | Z28: =Calculations!BD19 -> 3
A29: N/A | B29: Local Green Space (LGS): Chatsmore Farm | C29: 28.49514153 | D29: =Calculations!R20 -> 0.9084210526 | E29: =Calculations!Q20 -> 0.0501754386 | F29: =Calculations!M20 -> 0.01614035088 | G29: =Calculations!I20 -> 0.02526315789 | H29: =Calculations!AH20 -> 0.09160323137 | I29: =Calculations!AJ20 -> 0.07720866204 | J29: =Calculations!AL20 -> 0.08562679772 | K29: =Calculations!AN20 -> 0.1309550681 | L29: =Calculations!AP20 -> 0 | M29: =Calculations!AR20 -> 0 | N29: =Calculations!AX20 -> 0.05093595349 | O29: =Calculations!AZ20 -> 0.08891264421 | P29: =Calculations!BB20 -> 0.3632037111 | Q29: =Calculations!Y20 -> 0.1 | R29: =Calculations!AB20 -> 0.09836903825 | S29: =Calculations!AE20 -> 0.1086246257 | T29: =Calculations!T20 -> 0.01148512161 | U29: =Calculations!W20 -> 0 | V29: =Calculations!AT20 -> 0.8982715486 | W29: =Calculations!AV20 -> 0.1017281194 | X29: 4 | Y29: =Calculations!BC20 -> 3 | Z29: =Calculations!BD20 -> 3
A30: JAAP WH1 | B30: JAAP WH1 | C30: 0.503251058 | D30: =Calculations!R21 -> 0.02 | E30: =Calculations!Q21 -> 0.1 | F30: =Calculations!M21 -> 0.22 | G30: =Calculations!I21 -> 0.66 | H30: =Calculations!AH21 -> 0.9738488005 | I30: =Calculations!AJ21 -> 0 | J30: =Calculations!AL21 -> 0 | K30: =Calculations!AN21 -> 0 | L30: =Calculations!AP21 -> 1.000000143 | M30: =Calculations!AR21 -> 1.000000143 | N30: =Calculations!AX21 -> 0 | O30: =Calculations!AZ21 -> 0 | P30: =Calculations!BB21 -> 0 | Q30: =Calculations!Y21 -> 0 | R30: =Calculations!AB21 -> 0 | S30: =Calculations!AE21 -> 0 | T30: =Calculations!T21 -> 0 | U30: =Calculations!W21 -> 0 | V30: =Calculations!AT21 -> 0.007724126832 | W30: =Calculations!AV21 -> 0 | X30: =Calculations!U21 -> 0 | Y30: =Calculations!BC21 -> 2 | Z30: =Calculations!BD21 -> 3
A31: JAAP WH2 | B31: JAAP WH2 | C31: 1.570530291 | D31: =Calculations!R22 -> 0.01910828025 | E31: =Calculations!Q22 -> 0.08280254777 | F31: =Calculations!M22 -> 0.3184713376 | G31: =Calculations!I22 -> 0.5796178344 | H31: =Calculations!AH22 -> 0.9818158217 | I31: =Calculations!AJ22 -> 0 | J31: =Calculations!AL22 -> 0 | K31: =Calculations!AN22 -> 0 | L31: =Calculations!AP22 -> 1 | M31: =Calculations!AR22 -> 1 | N31: =Calculations!AX22 -> 0 | O31: =Calculations!AZ22 -> 0.01171578804 | P31: =Calculations!BB22 -> 0.02649238096 | Q31: =Calculations!Y22 -> 0.01273455222 | R31: =Calculations!AB22 -> 0.01349862535 | S31: =Calculations!AE22 -> 0.01426269848 | T31: =Calculations!T22 -> 0 | U31: =Calculations!W22 -> 0 | V31: =Calculations!AT22 -> 0 | W31: =Calculations!AV22 -> 0 | X31: 1 | Y31: =Calculations!BC22 -> 2 | Z31: =Calculations!BD22 -> 2
A32: JAAP WH3 | B32: JAAP WH3 | C32: 1.842734059 | D32: =Calculations!R23 -> 0.4402173913 | E32: =Calculations!Q23 -> 0.05434782609 | F32: =Calculations!M23 -> 0.1956521739 | G32: =Calculations!I23 -> 0.3097826087 | H32: =Calculations!AH23 -> 0.5567133002 | I32: =Calculations!AJ23 -> 0 | J32: =Calculations!AL23 -> 0 | K32: =Calculations!AN23 -> 0 | L32: =Calculations!AP23 -> 0.8991529979 | M32: =Calculations!AR23 -> 0.9622160385 | N32: =Calculations!AX23 -> 0 | O32: =Calculations!AZ23 -> 0.008465681697 | P32: =Calculations!BB23 -> 0.01705719273 | Q32: =Calculations!Y23 -> 0.009768094266 | R32: =Calculations!AB23 -> 0.01063636931 | S32: =Calculations!AE23 -> 0.01172171312 | T32: =Calculations!T23 -> 0 | U32: =Calculations!W23 -> 0 | V32: =Calculations!AT23 -> 0 | W32: =Calculations!AV23 -> 0 | X32: =Calculations!U23 -> 0 | Y32: =Calculations!BC23 -> 2 | Z32: =Calculations!BD23 -> 2
A33: JAAP WH4 | B33: JAAP WH4 | C33: 2.158835873 | D33: =Calculations!R24 -> 0.5138888889 | E33: =Calculations!Q24 -> 0.1527777778 | F33: =Calculations!M24 -> 0.3194444444 | G33: =Calculations!I24 -> 0.01388888889 | H33: =Calculations!AH24 -> 0.487138956 | I33: =Calculations!AJ24 -> 0 | J33: =Calculations!AL24 -> 0 | K33: =Calculations!AN24 -> 0 | L33: =Calculations!AP24 -> 0.9990037455 | M33: =Calculations!AR24 -> 1 | N33: =Calculations!AX24 -> 0 | O33: =Calculations!AZ24 -> 0.04893056615 | P33: =Calculations!BB24 -> 0.141676991 | Q33: =Calculations!Y24 -> 0.08042902364 | R33: =Calculations!AB24 -> 0.09105451751 | S33: =Calculations!AE24 -> 0.105506751 | T33: =Calculations!T24 -> 0 | U33: =Calculations!W24 -> 0 | V33: =Calculations!AT24 -> 0 | W33: =Calculations!AV24 -> 0 | X33: =Calculations!U24 -> 0 | Y33: =Calculations!BC24 -> 3 | Z33: =Calculations!BD24 -> 2
A34: JAAP WH5 | B34: JAAP WH5 | C34: 2.585816036 | D34: =Calculations!R25 -> 0.3166023166 | E34: =Calculations!Q25 -> 0.08494208494 | F34: =Calculations!M25 -> 0.5173745174 | G34: =Calculations!I25 -> 0.08108108108 | H34: =Calculations!AH25 -> 0.6842543291 | I34: =Calculations!AJ25 -> 0 | J34: =Calculations!AL25 -> 0 | K34: =Calculations!AN25 -> 0 | L34: =Calculations!AP25 -> 0.9892012597 | M34: =Calculations!AR25 -> 0.9903031362 | N34: =Calculations!AX25 -> 0.008507952498 | O34: =Calculations!AZ25 -> 0.03263959958 | P34: =Calculations!BB25 -> 0.08720893776 | Q34: =Calculations!Y25 -> 0.04687108376 | R34: =Calculations!AB25 -> 0.05104771499 | S34: =Calculations!AE25 -> 0.05336806567 | T34: =Calculations!T25 -> 0 | U34: =Calculations!W25 -> 0 | V34: =Calculations!AT25 -> 0.007951934086 | W34: =Calculations!AV25 -> 0.01041801684 | X34: =Calculations!U25 -> 0 | Y34: =Calculations!BC25 -> 3 | Z34: =Calculations!BD25 -> 4
A35: JAAP WH6 | B35: JAAP WH6 | C35: 0.4232666121 | D35: =Calculations!R26 -> 0.2619047619 | E35: =Calculations!Q26 -> 0.2380952381 | F35: =Calculations!M26 -> 0.5 | G35: =Calculations!I26 -> 0 | H35: =Calculations!AH26 -> 0.7420018073 | I35: =Calculations!AJ26 -> 0 | J35: =Calculations!AL26 -> 0 | K35: =Calculations!AN26 -> 0 | L35: =Calculations!AP26 -> 1 | M35: =Calculations!AR26 -> 1 | N35: =Calculations!AX26 -> 0 | O35: =Calculations!AZ26 -> 0 | P35: =Calculations!BB26 -> 0.1273327059 | Q35: =Calculations!Y26 -> 0 | R35: =Calculations!AB26 -> 0 | S35: =Calculations!AE26 -> 0 | T35: =Calculations!T26 -> 0 | U35: =Calculations!W26 -> 0 | V35: =Calculations!AT26 -> 0 | W35: =Calculations!AV26 -> 0 | X35: =Calculations!U26 -> 0 | Y35: =Calculations!BC26 -> 2 | Z35: =Calculations!BD26 -> 2
A36: JAAP WH7 | B36: JAAP WH7 | C36: 0.8409626513 | D36: =Calculations!R27 -> 0 | E36: =Calculations!Q27 -> 0 | F36: =Calculations!M27 -> 0.7976190476 | G36: =Calculations!I27 -> 0.2023809524 | H36: =Calculations!AH27 -> 1 | I36: =Calculations!AJ27 -> 0 | J36: =Calculations!AL27 -> 0 | K36: =Calculations!AN27 -> 0 | L36: =Calculations!AP27 -> 1 | M36: =Calculations!AR27 -> 1 | N36: =Calculations!AX27 -> 0 | O36: =Calculations!AZ27 -> 3.040095176e-05 | P36: =Calculations!BB27 -> 0.03888322963 | Q36: =Calculations!Y27 -> 0.0003180076661 | R36: =Calculations!AB27 -> 0.0005173085905 | S36: =Calculations!AE27 -> 0.01239439365 | T36: =Calculations!T27 -> 0 | U36: =Calculations!W27 -> 0 | V36: =Calculations!AT27 -> 7.184050212e-05 | W36: =Calculations!AV27 -> 0.003429427433 | X36: =Calculations!U27 -> 0 | Y36: =Calculations!BC27 -> 2 | Z36: =Calculations!BD27 -> 3
A37: N/A | B37: Adur Civic Centre Site, Ham Road | C37: 0.6387650535 | D37: =Calculations!R28 -> 0 | E37: =Calculations!Q28 -> 0 | F37: =Calculations!M28 -> 1 | G37: =Calculations!I28 -> 0 | H37: =Calculations!AH28 -> 1 | I37: =Calculations!AJ28 -> 0 | J37: =Calculations!AL28 -> 0 | K37: =Calculations!AN28 -> 0 | L37: =Calculations!AP28 -> 1 | M37: =Calculations!AR28 -> 1 | N37: =Calculations!AX28 -> 0.004634661572 | O37: =Calculations!AZ28 -> 0.05544199796 | P37: =Calculations!BB28 -> 0.467994532 | Q37: =Calculations!Y28 -> 0.1329548963 | R37: =Calculations!AB28 -> 0.1757779892 | S37: =Calculations!AE28 -> 0.2156502642 | T37: =Calculations!T28 -> 0 | U37: =Calculations!W28 -> 0 | V37: =Calculations!AT28 -> 0 | W37: =Calculations!AV28 -> 0 | X37: =Calculations!U28 -> 0 | Y37: =Calculations!BC28 -> 4 | Z37: =Calculations!BD28 -> 2
A38: N/A | B38: Police Station, Coop, The Mannings, Ham Road | C38: 1.109770635 | D38: =Calculations!R29 -> 1 | E38: =Calculations!Q29 -> 0 | F38: =Calculations!M29 -> 0 | G38: =Calculations!I29 -> 0 | H38: =Calculations!AH29 -> 0 | I38: =Calculations!AJ29 -> 0 | J38: =Calculations!AL29 -> 0 | K38: =Calculations!AN29 -> 0 | L38: =Calculations!AP29 -> 0.02597101305 | M38: =Calculations!AR29 -> 0.05990261828 | N38: =Calculations!AX29 -> 0 | O38: =Calculations!AZ29 -> 0 | P38: =Calculations!BB29 -> 0.0107587594 | Q38: =Calculations!Y29 -> 0.0001278957971 | R38: =Calculations!AB29 -> 0.0001278957971 | S38: =Calculations!AE29 -> 0.0001481749876 | T38: =Calculations!T29 -> 0 | U38: =Calculations!W29 -> 0 | V38: =Calculations!AT29 -> 0 | W38: =Calculations!AV29 -> 0 | X38: =Calculations!U29 -> 0 | Y38: =Calculations!BC29 -> 2 | Z38: =Calculations!BD29 -> 1
A39: N/A | B39: Health Centre, Library, Care home | C39: 0.5276539576 | D39: =Calculations!R30 -> 1 | E39: =Calculations!Q30 -> 0 | F39: =Calculations!M30 -> 0 | G39: =Calculations!I30 -> 0 | H39: =Calculations!AH30 -> 0 | I39: =Calculations!AJ30 -> 0 | J39: =Calculations!AL30 -> 0 | K39: =Calculations!AN30 -> 0 | L39: =Calculations!AP30 -> 0 | M39: =Calculations!AR30 -> 0 | N39: =Calculations!AX30 -> 0 | O39: =Calculations!AZ30 -> 0 | P39: =Calculations!BB30 -> 0 | Q39: =Calculations!Y30 -> 0.0318390486 | R39: =Calculations!AB30 -> 0.04396820998 | S39: =Calculations!AE30 -> 0.04851664549 | T39: =Calculations!T30 -> 0 | U39: =Calculations!W30 -> 0 | V39: =Calculations!AT30 -> 0 | W39: =Calculations!AV30 -> 0 | X39: =Calculations!U30 -> 0 | Y39: =Calculations!BC30 -> 2 | Z39: =Calculations!BD30 -> 1
A40: N/A | B40: Beach Green Car Park Shoreham, Beach Green | C40: 0.9256908216 | D40: =Calculations!R31 -> 0 | E40: =Calculations!Q31 -> 0 | F40: =Calculations!M31 -> 1 | G40: =Calculations!I31 -> 0 | H40: =Calculations!AH31 -> 1 | I40: =Calculations!AJ31 -> 0 | J40: =Calculations!AL31 -> 0 | K40: =Calculations!AN31 -> 0 | L40: =Calculations!AP31 -> 1 | M40: =Calculations!AR31 -> 1 | N40: =Calculations!AX31 -> 0 | O40: =Calculations!AZ31 -> 0 | P40: =Calculations!BB31 -> 0.08975521786 | Q40: =Calculations!Y31 -> 0 | R40: =Calculations!AB31 -> 1.553924345e-05 | S40: =Calculations!AE31 -> 0.0001637828846 | T40: =Calculations!T31 -> 0 | U40: =Calculations!W31 -> 0 | V40: =Calculations!AT31 -> 0 | W40: =Calculations!AV31 -> 0 | X40: =Calculations!U31 -> 0 | Y40: =Calculations!BC31 -> 3 | Z40: =Calculations!BD31 -> 2
A41: N/A | B41: Former Eastbrook Primary Sch, Manor Hall Rd | C41: 0.696858165 | D41: =Calculations!R32 -> 1 | E41: =Calculations!Q32 -> 0 | F41: =Calculations!M32 -> 0 | G41: =Calculations!I32 -> 0 | H41: =Calculations!AH32 -> 0 | I41: =Calculations!AJ32 -> 0 | J41: =Calculations!AL32 -> 0 | K41: =Calculations!AN32 -> 0 | L41: =Calculations!AP32 -> 0 | M41: =Calculations!AR32 -> 0 | N41: =Calculations!AX32 -> 0 | O41: =Calculations!AZ32 -> 0.0315702694 | P41: =Calculations!BB32 -> 0.1625013939 | Q41: =Calculations!Y32 -> 0.03903233307 | R41: =Calculations!AB32 -> 0.04592039185 | S41: =Calculations!AE32 -> 0.06601056328 | T41: =Calculations!T32 -> 0 | U41: =Calculations!W32 -> 0 | V41: =Calculations!AT32 -> 0 | W41: =Calculations!AV32 -> 1 | X41: =Calculations!U32 -> 0 | Y41: =Calculations!BC32 -> 0 | Z41: =Calculations!BD32 -> 0
A42: N/A | B42: Overhill Site Southwick | C42: 2.900524788 | D42: =Calculations!R33 -> 1 | E42: =Calculations!Q33 -> 0 | F42: =Calculations!M33 -> 0 | G42: =Calculations!I33 -> 0 | H42: =Calculations!AH33 -> 0 | I42: =Calculations!AJ33 -> 0 | J42: =Calculations!AL33 -> 0 | K42: =Calculations!AN33 -> 0 | L42: =Calculations!AP33 -> 0 | M42: =Calculations!AR33 -> 0 | N42: =Calculations!AX33 -> 0.01434700375 | O42: =Calculations!AZ33 -> 0.06838590546 | P42: =Calculations!BB33 -> 0.06838590546 | Q42: =Calculations!Y33 -> 0.09787930805 | R42: =Calculations!AB33 -> 0.1086359822 | S42: =Calculations!AE33 -> 0.1164808433 | T42: =Calculations!T33 -> 0 | U42: =Calculations!W33 -> 0 | V42: =Calculations!AT33 -> 0 | W42: =Calculations!AV33 -> 0 | X42: =Calculations!U33 -> 0 | Y42: =Calculations!BC33 -> 0 | Z42: =Calculations!BD33 -> 0
A43: N/A | B43: Lancing Police Station, North Road | C43: 0.1120511279 | D43: =Calculations!R34 -> 1 | E43: =Calculations!Q34 -> 0 | F43: =Calculations!M34 -> 0 | G43: =Calculations!I34 -> 0 | H43: =Calculations!AH34 -> 0 | I43: =Calculations!AJ34 -> 0 | J43: =Calculations!AL34 -> 0 | K43: =Calculations!AN34 -> 0 | L43: =Calculations!AP34 -> 0 | M43: =Calculations!AR34 -> 0 | N43: =Calculations!AX34 -> 0 | O43: =Calculations!AZ34 -> 0 | P43: =Calculations!BB34 -> 0 | Q43: =Calculations!Y34 -> 0 | R43: =Calculations!AB34 -> 0 | S43: =Calculations!AE34 -> 0 | T43: =Calculations!T34 -> 0 | U43: =Calculations!W34 -> 0 | V43: =Calculations!AT34 -> 0.4722237287 | W43: =Calculations!AV34 -> 0.5277763543 | X43: =Calculations!U34 -> 0 | Y43: =Calculations!BC34 -> 0 | Z43: =Calculations!BD34 -> 0
A44: N/A | B44: Mill Hill Site, Shoreham | C44: 5.83336016 | D44: =Calculations!R35 -> 1 | E44: =Calculations!Q35 -> 0 | F44: =Calculations!M35 -> 0 | G44: =Calculations!I35 -> 0 | H44: =Calculations!AH35 -> 0 | I44: =Calculations!AJ35 -> 0 | J44: =Calculations!AL35 -> 0 | K44: =Calculations!AN35 -> 0 | L44: =Calculations!AP35 -> 0 | M44: =Calculations!AR35 -> 0 | N44: =Calculations!AX35 -> 0 | O44: =Calculations!AZ35 -> 0 | P44: =Calculations!BB35 -> 0 | Q44: =Calculations!Y35 -> 0 | R44: =Calculations!AB35 -> 0 | S44: =Calculations!AE35 -> 0 | T44: =Calculations!T35 -> 0 | U44: =Calculations!W35 -> 0 | V44: =Calculations!AT35 -> 0 | W44: =Calculations!AV35 -> 0 | X44: =Calculations!U35 -> 0 | Y44: =Calculations!BC35 -> 1 | Z44: =Calculations!BD35 -> 1
A45: N/A | B45: Shoreham Gateway Site | C45: 2.331909295 | D45: =Calculations!R36 -> 0 | E45: =Calculations!Q36 -> 0 | F45: =Calculations!M36 -> 1 | G45: =Calculations!I36 -> 0 | H45: =Calculations!AH36 -> 1 | I45: =Calculations!AJ36 -> 0 | J45: =Calculations!AL36 -> 0 | K45: =Calculations!AN36 -> 0 | L45: =Calculations!AP36 -> 1 | M45: =Calculations!AR36 -> 1 | N45: =Calculations!AX36 -> 0.08652633613 | O45: =Calculations!AZ36 -> 0.198365382 | P45: =Calculations!BB36 -> 0.4592262326 | Q45: =Calculations!Y36 -> 0.2440325998 | R45: =Calculations!AB36 -> 0.2728322604 | S45: =Calculations!AE36 -> 0.3011879856 | T45: =Calculations!T36 -> 0 | U45: =Calculations!W36 -> 0 | V45: =Calculations!AT36 -> 0 | W45: =Calculations!AV36 -> 0 | X45: 1 | Y45: =Calculations!BC36 -> 4 | Z45: =Calculations!BD36 -> 2
A46: N/A | B46: New Salts Farm Site Lancing | C46: 29.23984846 | D46: =Calculations!R37 -> 0 | E46: =Calculations!Q37 -> 0 | F46: =Calculations!M37 -> 1 | G46: =Calculations!I37 -> 0 | H46: =Calculations!AH37 -> 0.9999652893 | I46: =Calculations!AJ37 -> 0 | J46: =Calculations!AL37 -> 0 | K46: =Calculations!AN37 -> 0 | L46: =Calculations!AP37 -> 1 | M46: =Calculations!AR37 -> 1 | N46: =Calculations!AX37 -> 0.001436395953 | O46: =Calculations!AZ37 -> 0.008411162629 | P46: =Calculations!BB37 -> 0.1123227255 | Q46: =Calculations!Y37 -> 0.01839906025 | R46: =Calculations!AB37 -> 0.02583521903 | S46: =Calculations!AE37 -> 0.03426968845 | T46: =Calculations!T37 -> 0.0730002556 | U46: =Calculations!W37 -> 0 | V46: =Calculations!AT37 -> 0.003886987917 | W46: =Calculations!AV37 -> 0.004226736682 | X46: =Calculations!U37 -> 0 | Y46: =Calculations!BC37 -> 3 | Z46: =Calculations!BD37 -> 4
A47: N/A | B47: Old Salts Farm Site, Lancing | C47: 13.84655558 | D47: =Calculations!R38 -> 0.05054151625 | E47: =Calculations!Q38 -> 0.006498194946 | F47: =Calculations!M38 -> 0.9429602888 | G47: =Calculations!I38 -> 0 | H47: =Calculations!AH38 -> 0.9499332812 | I47: =Calculations!AJ38 -> 0 | J47: =Calculations!AL38 -> 0 | K47: =Calculations!AN38 -> 0 | L47: =Calculations!AP38 -> 1 | M47: =Calculations!AR38 -> 1 | N47: =Calculations!AX38 -> 0.001212201195 | O47: =Calculations!AZ38 -> 0.03711795007 | P47: =Calculations!BB38 -> 0.1693809557 | Q47: =Calculations!Y38 -> 0.0690855515 | R47: =Calculations!AB38 -> 0.08427733852 | S47: =Calculations!AE38 -> 0.097911888 | T47: =Calculations!T38 -> 0.1814742792 | U47: =Calculations!W38 -> 0 | V47: =Calculations!AT38 -> 0.04789574357 | W47: =Calculations!AV38 -> 0.05883402383 | X47: 2 | Y47: =Calculations!BC38 -> 4 | Z47: =Calculations!BD38 -> 4
A48: N/A | B48: New Monks Farm Strategic Site | C48: 58.6851609 | D48: =Calculations!R39 -> 0.5736922815 | E48: =Calculations!Q39 -> 0.07411824842 | F48: =Calculations!M39 -> 0.3521894701 | G48: =Calculations!I39 -> 0 | H48: =Calculations!AH39 -> 0.4264249714 | I48: =Calculations!AJ39 -> 0 | J48: =Calculations!AL39 -> 0 | K48: =Calculations!AN39 -> 0 | L48: =Calculations!AP39 -> 0.9568983703 | M48: =Calculations!AR39 -> 0.9734620132 | N48: =Calculations!AX39 -> 0.01836934795 | O48: =Calculations!AZ39 -> 0.06636578753 | P48: =Calculations!BB39 -> 0.1963473462 | Q48: =Calculations!Y39 -> 0.1022673052 | R48: =Calculations!AB39 -> 0.1232574943 | S48: =Calculations!AE39 -> 0.1371224094 | T48: =Calculations!T39 -> 0 | U48: =Calculations!W39 -> 0 | V48: =Calculations!AT39 -> 0.3082529201 | W48: =Calculations!AV39 -> 0 | X48: 1 | Y48: =Calculations!BC39 -> 3 | Z48: =Calculations!BD39 -> 4
A49: N/A | B49: The Pilot PH, Station Rd, Southwick | C49: 0.10994825 | D49: =Calculations!R40 -> 1 | E49: =Calculations!Q40 -> 0 | F49: =Calculations!M40 -> 0 | G49: =Calculations!I40 -> 0 | H49: =Calculations!AH40 -> 0 | I49: =Calculations!AJ40 -> 0 | J49: =Calculations!AL40 -> 0 | K49: =Calculations!AN40 -> 0 | L49: =Calculations!AP40 -> 0 | M49: =Calculations!AR40 -> 0 | N49: =Calculations!AX40 -> 0 | O49: =Calculations!AZ40 -> 0 | P49: =Calculations!BB40 -> 0 | Q49: =Calculations!Y40 -> 0 | R49: =Calculations!AB40 -> 0 | S49: =Calculations!AE40 -> 0 | T49: =Calculations!T40 -> 0 | U49: =Calculations!W40 -> 0 | V49: =Calculations!AT40 -> 0 | W49: =Calculations!AV40 -> 0 | X49: =Calculations!U40 -> 0 | Y49: =Calculations!BC40 -> 1 | Z49: =Calculations!BD40 -> 0
A50: N/A | B50: West Sompting Strategic Site | C50: 29.74037799 | D50: =Calculations!R41 -> 0.9952925353 | E50: =Calculations!Q41 -> 0.00369872226 | F50: =Calculations!M41 -> 0 | G50: =Calculations!I41 -> 0.001008742434 | H50: =Calculations!AH41 -> 0.004569134907 | I50: =Calculations!AJ41 -> 0 | J50: =Calculations!AL41 -> 0 | K50: =Calculations!AN41 -> 0 | L50: =Calculations!AP41 -> 0 | M50: =Calculations!AR41 -> 0 | N50: =Calculations!AX41 -> 0.002713634979 | O50: =Calculations!AZ41 -> 0.0169777417 | P50: =Calculations!BB41 -> 0.06606108363 | Q50: =Calculations!Y41 -> 0.02476821594 | R50: =Calculations!AB41 -> 0.02938228314 | S50: =Calculations!AE41 -> 0.03342258547 | T50: =Calculations!T41 -> 0 | U50: =Calculations!W41 -> 0 | V50: =Calculations!AT41 -> 0.4533191938 | W50: =Calculations!AV41 -> 0.02631178662 | X50: 1 | Y50: =Calculations!BC41 -> 3 | Z50: =Calculations!BD41 -> 4
A51: N/A | B51: Shoreham Airport Strategic Site | C51: 6.760246979 | D51: =Calculations!R42 -> 0 | E51: =Calculations!Q42 -> 0.001479289941 | F51: =Calculations!M42 -> 0.9659763314 | G51: =Calculations!I42 -> 0.0325443787 | H51: =Calculations!AH42 -> 0.9998090169 | I51: =Calculations!AJ42 -> 0 | J51: =Calculations!AL42 -> 0 | K51: =Calculations!AN42 -> 0 | L51: =Calculations!AP42 -> 1 | M51: =Calculations!AR42 -> 1 | N51: =Calculations!AX42 -> 0 | O51: =Calculations!AZ42 -> 0.008382829825 | P51: =Calculations!BB42 -> 0.02071426141 | Q51: =Calculations!Y42 -> 0.08382829825 | R51: =Calculations!AB42 -> 0.08382829825 | S51: =Calculations!AE42 -> 0.08382829825 | T51: =Calculations!T42 -> 0.1634682782 | U51: =Calculations!W42 -> 0 | V51: =Calculations!AT42 -> 0 | W51: =Calculations!AV42 -> 0 | X51: 1 | Y51: =Calculations!BC42 -> 2 | Z51: =Calculations!BD42 -> 2

Sheet Calculations
A1: Name | B1: SHLAA REF | C1: HELAA ref | D1: Achieveable | E1: Site (ha) | G1: FZ3b (ha) | I1: FZ3b (%) | J1: FZ3a (ha) | M1: FZ3a (%) | N1: FZ2 (ha) | Q1: FZ2 (%) | R1: FZ1 (%) | S1: HFM | T1: HFM | U1: HF Instances (within 50m) | V1: RES | X1: SW20% | Z1: SW30% | AC1: SW40% | AF1: Sewer Flooding Withnin 50m | AG1: FZ2 (where used as a proxy) | AI1: 0.35 | AK1: 0.45 | AM1: 1.05 | AO1: CC 2070 | AQ1: CC 2115 | AS1: GW 0- 0.025m | AU1: GW 0.025- 0.05m | AW1: SW30 | AY1: SW100 | BA1: SW1000 | BC1: Tidal Drainage Flood Zone | BD1: Tidal influenced Groundwater Flood Zone
A2: Worthing United Football Club | B2: N/A | C2: N/A | E2: 1.460994721 | F2: =ROUND(E2,2) -> 1.46 | G2: 0 | H2: =ROUND(G2,2) -> 0 | I2: =H2/F2 -> 0 | J2: 0 | K2: =ROUND(J2,2) -> 0 | L2: =K2/F2 -> 0 | M2: =L2-I2 -> 0 | N2: 0 | O2: =ROUND(N2,2) -> 0 | P2: =O2/F2 -> 0 | Q2: =P2-L2 -> 0 | R2: =1-P2 -> 1 | S2: 0 | T2: =S2/E2 -> 0 | V2: 0 | W2: =V2/E2 -> 0 | X2: 0.0472 | Y2: =X2/E2 -> 0.03230675602 | Z2: 0.0496 | AA2: =Z2/E2 -> 0.03394947243 | AB2: =Z2/E2 -> 0.03394947243 | AC2: 0.05 | AD2: =AC2/E2 -> 0.0342232585 | AE2: =AC2/E2 -> 0.0342232585 | AF2: 0 | AG2: 0 | AH2: =AG2/E2 -> 0 | AI2: 0 | AJ2: =AI2/E2 -> 0 | AK2: 0 | AL2: =AK2/E2 -> 0 | AM2: 0 | AN2: =AM2/E2 -> 0 | AO2: 0 | AP2: =AO2/E2 -> 0 | AQ2: 0 | AR2: =AQ2/E2 -> 0 | AS2: 0 | AT2: =AS2/E2 -> 0 | AU2: 0 | AV2: =AU2/E2 -> 0 | AW2: 0.0344 | AX2: =AW2/E2 -> 0.02354560185 | AY2: 0.0416 | AZ2: =AY2/E2 -> 0.02847375107 | BA2: 0.0588 | BB2: =BA2/E2 -> 0.040246552 | BC2: 0 | BD2: 0 | BG2: 0.0588
A3: Land North of Beeches Avenue | B3: N/A | C3: N/A | E3: 2.829801781 | F3: =ROUND(E3,2) -> 2.83 | G3: 0 | H3: =ROUND(G3,2) -> 0 | I3: =H3/F3 -> 0 | J3: 0 | K3: =ROUND(J3,2) -> 0 | L3: =K3/F3 -> 0 | M3: 0 | N3: 0 | O3: =ROUND(N3,2) -> 0 | P3: =O3/F3 -> 0 | Q3: =P3-L3 -> 0 | R3: =1-P3 -> 1 | S3: 0 | T3: 0 | V3: 0 | W3: 0 | X3: 0.01043125356 | Y3: =X3/E3 -> 0.003686213513 | Z3: 0.01123125356 | AA3: 0.003968918827 | AB3: =Z3/E3 -> 0.003968918827 | AC3: 0.01123125356 | AD3: 0.003968918827 | AE3: =AC3/E3 -> 0.003968918827 | AF3: 0 | AG3: 0 | AH3: 0 | AI3: 0 | AJ3: =AI3/E3 -> 0 | AK3: 0 | AL3: =AK3/E3 -> 0 | AM3: 0 | AN3: =AM3/E3 -> 0 | AO3: 0 | AP3: 0 | AQ3: 0 | AR3: 0 | AS3: 0 | AT3: 0 | AU3: 0 | AV3: 0 | AW3: 0 | AX3: 0 | AY3: 0.01 | AZ3: 0.003533816421 | BA3: 0.02000425356 | BB3: 0.007069135973 | BC3: 0 | BD3: 0 | BG3: 0.02000425356
A4: Land South of Upper Brighton Road | B4: N/A | C4: N/A | E4: 5.825191904 | F4: 5.83 | G4: 0 | H4: 0 | I4: 0 | J4: 0 | K4: 0 | L4: 0 | M4: 0 | N4: 0 | O4: 0 | P4: 0 | Q4: 0 | R4: 1 | S4: 0 | T4: 0 | V4: 0 | W4: 0 | X4: 0.0456 | Y4: 0.007828068286 | Z4: 0.06023579 | AA4: 0.01034056749 | AB4: 0.01034056749 | AC4: 0.07031642027 | AD4: 0.01207109078 | AE4: 0.01207109078 | AF4: 0 | AG4: 0 | AH4: 0 | AI4: 0 | AJ4: 0 | AK4: 0 | AL4: 0 | AM4: 0 | AN4: 0 | AO4: 0 | AP4: 0 | AQ4: 0 | AR4: 0 | AS4: 2.033716794 | AT4: 0.3491244284 | AU4: 1.624892666 | AV4: 0.278942341 | AW4: 0 | AX4: 0 | AY4: 0.0332 | AZ4: 0.00569938305 | BA4: 0.2080966972 | BB4: 0.03572357797 | BC4: 2 | BD4: 4 | BG4: 0.2080966972
A5: Land Site West of Fulbeck Avenue | B5: N/A | C5: N/A | E5: 2.001757117 | F5: 2 | G5: 0.1034895713 | H5: 0.1 | I5: 0.05 | J5: 0.4871202854 | K5: 0.49 | L5: 0.245 | M5: 0.195 | N5: 0.6020818294 | O5: 0.6 | P5: 0.3 | Q5: 0.055 | R5: 0.7 | S5: 0 | T5: 0 | V5: 0 | W5: 0 | X5: 0.7238387823 | Y5: 0.3616017028 | Z5: 0.8138946857 | AA5: 0.4065901296 | AB5: 0.4065901296 | AC5: 0.8988104926 | AD5: 0.449010764 | AE5: 0.449010764 | AF5: 0 | AG5: 0.6020818294 | AH5: 0.3007766647 | AI5: 0.535545553 | AJ5: 0.2675377289 | AK5: 0.5701821327 | AL5: 0.2848408169 | AM5: 0.8215609874 | AN5: 0.4104199157 | AO5: 0 | AP5: 0 | AQ5: 0 | AR5: 0 | AS5: 0.7132520476 | AT5: 0.3563129819 | AU5: 0 | AV5: 0 | AW5: 0.5041099305 | AX5: 0.2518337145 | AY5: 0.60672 | AZ5: 0.3030937144 | BA5: 1.059074766 | BB5: 0.5290725617 | BC5: 0 | BD5: 0 | BG5: 2.499746705
A6: (Part of) Phase 1 West Durrington | B6: CC08212 | C6: HCC0002 | D6: Site Allocation | E6: 6.981937832 | F6: 6.98 | G6: 0.1135370905 | H6: 0.11 | I6: 0.01575931232 | J6: 0.1352360305 | K6: 0.14 | L6: 0.02005730659 | M6: 0.004297994269 | N6: 0.1489024567 | O6: 0.15 | P6: 0.02148997135 | Q6: 0.001432664756 | R6: 0.9785100287 | S6: 0 | T6: 0 | V6: 0 | W6: 0 | X6: 0.4513767605 | Y6: 0.06464920934 | Z6: 0.4547856317 | AA6: 0.06513745075 | AB6: 0.06513745075 | AC6: 0.4759412826 | AD6: 0.06816750507 | AE6: 0.06816750507 | AF6: 0 | AG6: 0.1489024567 | AH6: 0.0213268093 | AI6: 0.1452368118 | AJ6: 0.02080179104 | AK6: 0.1464368118 | AL6: 0.02097366309 | AM6: 0.243794073 | AN6: 0.03491782351 | AO6: 0 | AP6: 0 | AQ6: 0 | AR6: 0 | AS6: 0.1049715211 | AT6: 0.01503472584 | AU6: 0 | AV6: 0 | AW6: 0.2583336653 | AX6: 0.03700028151 | AY6: 0.4509490559 | AZ6: 0.06458795062 | BA6: 1.508983291 | BB6: 0.2161267154 | BC6: 0 | BD6: 0 | BG6: 1.508983291
A7: Bus Depot, Library Place | B7: WH08211 | C7: HWH0002 | D7: Planning Permission | E7: 0.672703598 | F7: 0.67 | G7: 0.04404111848 | H7: 0.04 | I7: 0.05970149254 | J7: 0.1449369992 | K7: 0.14 | L7: 0.2089552239 | M7: 0.1492537313 | N7: 0.303802368 | O7: 0.3 | P7: 0.447761194 | Q7: 0.2388059701 | R7: 0.552238806 | S7: 0 | T7: 0 | V7: 0 | W7: 0 | X7: 0.002461765261 | Y7: 0.003659509579 | Z7: 0.003880417413 | AA7: 0.005768391048 | AB7: 0.005768391048 | AC7: 0.007039200975 | AD7: 0.01046404538 | AE7: 0.01046404538 | AF7: 0 | AG7: 0.303802368 | AH7: 0.4516140078 | AI7: 0 | AJ7: 0 | AK7: 0 | AL7: 0 | AM7: 0 | AN7: 0 | AO7: 0.672703729 | AP7: 1.000000195 | AQ7: 0.672703729 | AR7: 1.000000195 | AS7: 0 | AT7: 0 | AU7: 0.0515856561 | AV7: 0.07668407937 | AW7: 0 | AX7: 0 | AY7: 0 | AZ7: 0 | BA7: 0.02897344235 | BB7: 0.04307014625 | BC7: 2 | BD7: 2 | BG7: 0.02897344235
A8: Grafton MSCP and part of Land at 51-93 Montague Street | B8: EWBR08224 | C8: HEWB0008 | D8: Unachievable | E8: 0.7660365785 | F8: 0.77 | G8: 0.5210949496 | H8: 0.52 | I8: 0.6753246753 | J8: 0.549132982 | K8: 0.55 | L8: 0.7142857143 | M8: 0.03896103896 | N8: 0.6548834963 | O8: 0.65 | P8: 0.8441558442 | Q8: 0.1298701299 | R8: 0.1558441558 | S8: 0 | T8: 0 | V8: 0 | W8: 0 | X8: 0.05430528481 | Y8: 0.07089124246 | Z8: 0.06070528481 | AA8: 0.07924593488 | AB8: 0.07924593488 | AC8: 0.07332038539 | AD8: 0.0957139482 | AE8: 0.0957139482 | AF8: 0 | AG8: 0.6548834963 | AH8: 0.8548984666 | AI8: 0 | AJ8: 0 | AK8: 0 | AL8: 0 | AM8: 0 | AN8: 0 | AO8: 0.7660362409 | AP8: 0.9999995593 | AQ8: 0.7660362409 | AR8: 0.9999995593 | AS8: 0 | AT8: 0 | AU8: 0 | AV8: 0 | AW8: 0 | AX8: 0 | AY8: 0.0412 | AZ8: 0.05378333249 | BA8: 0.1716038252 | BB8: 0.2240151841 | BC8: 3 | BD8: 2 | BG8: 0.1716038252
A9: Police Station Site (plus area of parking to east) | B9: TG08315 | C9: HTG0003 | D9: Planning Permission | E9: 0.6014365072 | F9: 0.6 | G9: 0 | H9: 0 | I9: 0 | J9: 0 | K9: 0 | L9: 0 | M9: 0 | N9: 0 | O9: 0 | P9: 0 | Q9: 0 | R9: 1 | S9: 0 | T9: 0 | V9: 0 | W9: 0 | X9: 0.0152 | Y9: 0.02527282567 | Z9: 0.0176 | AA9: 0.02926327183 | AB9: 0.02926327183 | AC9: 0.02 | AD9: 0.03325371799 | AE9: 0.03325371799 | AF9: 0 | AG9: 0 | AH9: 0 | AI9: 0 | AJ9: 0 | AK9: 0 | AL9: 0 | AM9: 0 | AN9: 0 | AO9: 0 | AP9: 0 | AQ9: 0 | AR9: 0 | AS9: 0 | AT9: 0 | AU9: 0.254415924 | AV9: 0.4230137694 | AW9: 0 | AX9: 0 | AY9: 0.0132 | AZ9: 0.02194745388 | BA9: 0.0132 | BB9: 0.02194745388 | BC9: 0 | BD9: 0 | BG9: 0.0284
A10: Gas Holder Station, Lyndhurst Road | B10: BB08196 | C10: HBO0003 | D10: Unachievable | E10: 1.148889196 | F10: 1.15 | G10: 0 | H10: 0 | I10: 0 | J10: 0 | K10: 0 | L10: 0 | M10: 0 | N10: 0 | O10: 0 | P10: 0 | Q10: 0 | R10: 1 | S10: 0 | T10: 0 | V10: 0 | W10: 0 | X10: 0 | Y10: 0 | Z10: 0 | AA10: 0 | AB10: 0 | AC10: 0 | AD10: 0 | AE10: 0 | AF10: 0 | AG10: 0 | AH10: 0 | AI10: 0 | AJ10: 0 | AK10: 0 | AL10: 0 | AM10: 0 | AN10: 0 | AO10: 0 | AP10: 0 | AQ10: 0 | AR10: 0 | AS10: 0 | AT10: 0 | AU10: 1.148889184 | AV10: 0.99999999 | AW10: 0 | AX10: 0 | AY10: 0 | AZ10: 0 | BA10: 0.0284 | BB10: 0.02471952919 | BC10: 0 | BD10: 0 | BG10: 1.092907994e-06
A11: Land Rear of Juno Close & Land Former Sewage Works, Barrington Road | B11: LX0857 | C11: HLX0007 | D11: Achievable | E11: 3.033716926 | F11: 3.03 | G11: 0 | H11: 0 | I11: 0 | J11: 0 | K11: 0 | L11: 0 | M11: 0 | N11: 0 | O11: 0 | P11: 0 | Q11: 0 | R11: 1 | S11: 0 | T11: 0 | V11: 0 | W11: 0 | X11: 0.1064 | Y11: 0.03507248784 | Z11: 0.1408 | AA11: 0.04641171324 | AB11: 0.04641171324 | AC11: 0.1676 | AD11: 0.05524576093 | AE11: 0.05524576093 | AF11: 0 | AG11: 0 | AH11: 0 | AI11: 0 | AJ11: 0 | AK11: 0 | AL11: 0 | AM11: 0 | AN11: 0 | AO11: 0 | AP11: 0 | AQ11: 0 | AR11: 0 | AS11: 0 | AT11: 0 | AU11: 3.033716396 | AV11: 0.9999998253 | AW11: 0 | AX11: 0 | AY11: 0.0588 | AZ11: 0.01938216433 | BA11: 0.3608 | BB11: 0.1189300152 | BC11: 0 | BD11: 0 | BG11: 0.3608
A12: Land Site Decoy Farm, Dominion Way | B12: FB08281 | C12: HFB0021 | D12: Achievable | E12: 7.356721215 | F12: 7.36 | G12: 0.9735355664 | H12: 0.97 | I12: 0.1317934783 | J12: 0.9735327507 | K12: 0.97 | L12: 0.1317934783 | M12: 0 | N12: 1.211454703 | O12: 1.21 | P12: 0.1644021739 | Q12: 0.03260869565 | R12: 0.8355978261 | S12: 0 | T12: 0 | V12: 0 | W12: 0 | X12: 0.6021482152 | Y12: 0.08185007935 | Z12: 0.6528124581 | AA12: 0.08873687597 | AB12: 0.08873687597 | AC12: 0.7130003946 | AD12: 0.09691822944 | AE12: 0.09691822944 | AF12: 0 | AG12: 1.211454703 | AH12: 0.1646731835 | AI12: 0 | AJ12: 0 | AK12: 0 | AL12: 0 | AM12: 0 | AN12: 0 | AO12: 0 | AP12: 0 | AQ12: 0 | AR12: 0 | AS12: 0.896564917 | AT12: 0.121870177 | AU12: 0.1075 | AV12: 0.01461248794 | AW12: 0.1728941472 | AX12: 0.02350152223 | AY12: 0.5059624634 | AZ12: 0.06877553853 | BA12: 1.23298532 | BB12: 0.1675998429 | BC12: 4 | BD12: 4 | BG12: 1.23298532
A13: Inland Revenue Office, Durrington | B13: NB08303 | C13: HCH0011 | D13: Achievable | E13: 6.730725356 | F13: 6.73 | G13: 0 | H13: 0 | I13: 0 | J13: 0 | K13: 0 | L13: 0 | M13: 0 | N13: 0 | O13: 0 | P13: 0 | Q13: 0 | R13: 1 | S13: 0 | T13: 0 | V13: 0 | W13: 0 | X13: 0.3193692447 | Y13: 0.04744945422 | Z13: 0.4019150644 | AA13: 0.05971348452 | AB13: 0.05971348452 | AC13: 0.4875812939 | AD13: 0.07244112159 | AE13: 0.07244112159 | AF13: 0 | AG13: 0 | AH13: 0 | AI13: 0 | AJ13: 0 | AK13: 0 | AL13: 0 | AM13: 0 | AN13: 0 | AO13: 0 | AP13: 0 | AQ13: 0 | AR13: 0 | AS13: 0 | AT13: 0 | AU13: 6.730724297 | AV13: 0.9999998427 | AW13: 0.0188 | AX13: 0.002793161064 | AY13: 0.2081313289 | AZ13: 0.03092257044 | BA13: 0.9908389777 | BB13: 0.147211322 | BC13: 0 | BD13: 0 | BG13: 0.9908389777
A14: Centenary House | B14: FB08272 | C14: HFB0015 | D14: Site Allocation | E14: 4.106715221 | F14: 4.11 | G14: 0 | H14: 0 | I14: 0 | J14: 0 | K14: 0 | L14: 0 | M14: 0 | N14: 0 | O14: 0 | P14: 0 | Q14: 0 | R14: 1 | S14: 4.056318621 | T14: 0.9877282458 | V14: 0 | W14: 0 | X14: 0.709696978 | Y14: 0.1728137793 | Z14: 0.9806700256 | AA14: 0.2387966958 | AB14: 0.2387966958 | AC14: 1.197244756 | AD14: 0.2915334255 | AE14: 0.2915334255 | AF14: 0 | AG14: 0 | AH14: 0 | AI14: 0 | AJ14: 0 | AK14: 0 | AL14: 0 | AM14: 0 | AN14: 0 | AO14: 0 | AP14: 0 | AQ14: 0 | AR14: 0 | AS14: 4.106715481 | AT14: 1.000000063 | AU14: 0 | AV14: 0 | AW14: 0.01647958031 | AX14: 0.00401283737 | AY14: 0.2587770168 | AZ14: 0.06301313894 | BA14: 2.157332979 | BB14: 0.525318378 | BC14: 0 | BD14: 0 | BG14: 2.157332979
A15: Worthing Leisure Centre, Shaftesbury Avenue | B15: WG08152 | C15: HWG0002 | D15: Planning Permission | E15: 6.812413633 | F15: 6.81 | G15: 0 | H15: 0 | I15: 0 | J15: 0 | K15: 0 | L15: 0 | M15: 0 | N15: 0 | O15: 0 | P15: 0 | Q15: 0 | R15: =1-P15 -> 1 | S15: 0 | T15: 0 | V15: 0 | W15: 0 | X15: 0.5479503463 | Y15: 0.08043409808 | Z15: 0.6448533727 | AA15: 0.09465857586 | AB15: 0.09465857586 | AC15: 0.7058891525 | AD15: 0.10361807 | AE15: 0.10361807 | AF15: 0 | AG15: 0 | AH15: 0 | AI15: 0 | AJ15: 0 | AK15: 0 | AL15: 0 | AM15: 0 | AN15: 0 | AO15: 0 | AP15: 0 | AQ15: 0 | AR15: 0 | AS15: 0 | AT15: 0 | AU15: 6.81241405 | AV15: 1.000000061 | AW15: 0.04041999439 | AX15: 0.005933285407 | AY15: 0.3676628759 | AZ15: 0.05396954672 | BA15: 1.259924322 | BB15: 0.1849453644 | BC15: 0 | BD15: 0 | BG15: 1.259924322
A16: (Includes) Land South of Stoke Abbott Road | B16: EWBR08216 | C16: HEWB0002 | D16: Achievable | E16: 0.4842268888 | F16: 0.48 | G16: 0 | H16: 0 | I16: =H16/F16 -> 0 | J16: 0 | K16: 0 | L16: 0 | M16: =L16-I16 -> 0 | N16: 0 | O16: 0 | P16: 0 | Q16: 0 | R16: 1 | S16: 0 | T16: 0 | V16: 0 | W16: 0 | X16: 0 | Y16: 0 | Z16: 0 | AA16: 0 | AB16: 0 | AC16: 0 | AD16: 0 | AE16: 0 | AF16: 0 | AG16: 0 | AH16: 0 | AI16: 0 | AJ16: 0 | AK16: 0 | AL16: 0 | AM16: 0 | AN16: 0 | AO16: 0 | AP16: 0 | AQ16: 0 | AR16: 0 | AS16: 0 | AT16: 0 | AU16: 0.4842271049 | AV16: 1.000000446 | AW16: 0 | AX16: 0 | AY16: 0 | AZ16: 0 | BA16: 0 | BB16: 0 | BC16: 0 | BD16: 0 | BG16: 0
A17: Teville Gate, Railway Approach | B17: BI08177 | C17: HBI0009 | D17: Achievable | E17: 1.752553969 | F17: 1.75 | G17: 0 | H17: 0 | I17: 0 | J17: 0 | K17: 0 | L17: 0 | M17: 0 | N17: 0 | O17: 0 | P17: 0 | Q17: 0 | R17: 1 | S17: 0 | T17: 0 | V17: 0 | W17: 0 | X17: 0.9083857693 | Y17: 0.518321139 | Z17: 0.9369052679 | AA17: 0.5345942462 | AB17: 0.5345942462 | AC17: 1.004528843 | AD17: 0.5731799767 | AE17: 0.5731799767 | AF17: 0 | AG17: 0 | AH17: 0 | AI17: 0 | AJ17: 0 | AK17: 0 | AL17: 0 | AM17: 0 | AN17: 0 | AO17: 0 | AP17: 0 | AQ17: 0 | AR17: 0 | AS17: 0 | AT17: 0 | AU17: 1.752553716 | AV17: 0.9999998558 | AW17: 0.5782777438 | AX17: 0.3299628737 | AY17: 0.8477833214 | AZ17: 0.4837416345 | BA17: 1.273672558 | BB17: 0.7267522602 | BC17: 3 | BD17: 0 | BG17: 1.273672558
A18: Caravan Club | B18: SY08312B | C18: HSY0004 | D18: Planning Permission | E18: 2.550144438 | F18: 2.55 | G18: 0 | H18: 0 | I18: 0 | J18: 0 | K18: 0 | L18: 0 | M18: 0 | N18: 0 | O18: 0 | P18: 0 | Q18: 0 | R18: 1 | S18: 0 | T18: 0 | V18: 0 | W18: 0 | X18: 0.0284 | Y18: 0.0111366241 | Z18: 0.034 | AA18: 0.01333257815 | AB18: 0.01333257815 | AC18: 0.0376 | AD18: 0.01474426289 | AE18: 0.01474426289 | AF18: 0 | AG18: 0 | AH18: 0 | AI18: 0 | AJ18: 0 | AK18: 0 | AL18: 0 | AM18: 0 | AN18: 0 | AO18: 0 | AP18: 0 | AQ18: 0 | AR18: 0 | AS18: 0.460947367 | AT18: 0.180753435 | AU18: 0 | AV18: 0 | AW18: 0 | AX18: 0 | AY18: 0.01 | AZ18: 0.003921346514 | BA18: 0.07999584 | BB18: 0.03136914083 | BC18: 0 | BD18: 0 | BG18: 0.07999584
A19: Local Green Space (LGS): Goring-Ferring Gap | B19: BX0802 | C19: HBX0002 | D19: Unachievable | E19: 30.1487974 | F19: 30.15 | G19: 0 | H19: 0 | I19: 0 | J19: 0.007080410151 | K19: 0.01 | L19: 0.0003316749585 | M19: 0.0003316749585 | N19: 1.285941757 | O19: 1.29 | P19: 0.04278606965 | Q19: 0.04245439469 | R19: 0.9572139303 | S19: 0 | T19: 0 | V19: 0 | W19: 0 | X19: 0.5530717622 | Y19: 0.0183447371 | Z19: 0.7067668231 | AA19: 0.02344262073 | AB19: 0.02344262073 | AC19: 0.8940491038 | AD19: 0.02965455278 | AE19: 0.02965455278 | AF19: 0 | AG19: 1.285941757 | AH19: 0.04265316919 | AI19: 0 | AJ19: 0 | AK19: 0 | AL19: 0 | AM19: 0 | AN19: 0 | AO19: 0.8307338429 | AP19: 0.02755446036 | AQ19: 1.028279439 | AR19: 0.03410681444 | AS19: 0 | AT19: 0 | AU19: 27.55220787 | AV19: 0.913874192 | AW19: 0.1076483879 | AX19: 0.00357056988 | AY19: 0.2980563222 | AZ19: 0.009886176161 | BA19: 2.540144998 | BB19: 0.08425360931 | BC19: 2 | BD19: 3 | BG19: 2.540144998
A20: Local Green Space (LGS): Chatsmore Farm | B20: SB08329 | C20: HSB0019 | D20: Unachievable | E20: 28.49514153 | F20: 28.5 | G20: 0.7157396717 | H20: 0.72 | I20: 0.02526315789 | J20: 1.176418806 | K20: 1.18 | L20: 0.04140350877 | M20: 0.01614035088 | N20: 2.610247042 | O20: 2.61 | P20: 0.09157894737 | Q20: 0.0501754386 | R20: 0.9084210526 | S20: 0.3272701656 | T20: 0.01148512161 | V20: 0 | W20: 0 | X20: 2.53357838 | Y20: =10% -> 0.1 | Z20: 2.803039667 | AA20: 0.09836903825 | AB20: 0.09836903825 | AC20: 3.095274084 | AD20: 0.1086246257 | AE20: 0.1086246257 | AF20: 4 | AG20: 2.610247042 | AH20: 0.09160323137 | AI20: 2.200071752 | AJ20: 0.07720866204 | AK20: 2.439947719 | AL20: 0.08562679772 | AM20: 3.7315832 | AN20: 0.1309550681 | AO20: 0 | AP20: 0 | AQ20: 0 | AR20: 0 | AS20: 25.59637491 | AT20: 0.8982715486 | AU20: 2.89875716 | AV20: 0.1017281194 | AW20: 1.451427204 | AX20: 0.05093595349 | AY20: 2.53357838 | AZ20: 0.08891264421 | BA20: 10.34954115 | BB20: 0.3632037111 | BC20: 3 | BD20: 3 | BG20: 10.34954115
A21: JAAP WH1 | B21: HT08284 | C21: HSB0006 | D21: Unachievable | E21: 0.503251058 | F21: 0.5 | G21: 0.3264679311 | H21: 0.33 | I21: 0.66 | J21: 0.4384344043 | K21: 0.44 | L21: 0.88 | M21: 0.22 | N21: 0.4900904392 | O21: 0.49 | P21: 0.98 | Q21: 0.1 | R21: 0.02 | S21: 0 | T21: 0 | V21: 0 | W21: 0 | X21: 0 | Y21: 0 | Z21: 0 | AA21: 0 | AB21: 0 | AC21: 0 | AD21: 0 | AE21: 0 | AF21: 0 | AG21: 0.4900904392 | AH21: 0.9738488005 | AI21: 0 | AJ21: 0 | AK21: 0 | AL21: 0 | AM21: 0 | AN21: 0 | AO21: 0.5032511302 | AP21: 1.000000143 | AQ21: 0.5032511302 | AR21: 1.000000143 | AS21: 0.003887175 | AT21: 0.007724126832 | AU21: 0 | AV21: 0 | AW21: 0 | AX21: 0 | AY21: 0 | AZ21: 0 | BA21: 0 | BB21: 0 | BC21: 2 | BD21: 3 | BG21: 0
A22: JAAP WH2 | B22: N/A | C22: HKD0001 | D22: Unachievable | E22: 1.570530291 | F22: 1.57 | G22: 0.9068733119 | H22: 0.91 | I22: 0.5796178344 | J22: 1.414036099 | K22: 1.41 | L22: 0.898089172 | M22: 0.3184713376 | N22: 1.541971488 | O22: 1.54 | P22: 0.9808917197 | Q22: 0.08280254777 | R22: =1-P22 -> 0.01910828025 | S22: 0 | T22: 0 | V22: 0 | W22: 0 | X22: 0.02 | Y22: 0.01273455222 | Z22: 0.0212 | AA22: 0.01349862535 | AB22: 0.01349862535 | AC22: 0.0224 | AD22: 0.01426269848 | AE22: 0.01426269848 | AF22: 1 | AG22: 1.541971488 | AH22: 0.9818158217 | AI22: 0 | AJ22: 0 | AK22: 0 | AL22: 0 | AM22: 0 | AN22: 0 | AO22: 1.570530291 | AP22: 1 | AQ22: 1.570530291 | AR22: 1 | AS22: 0 | AT22: 0 | AU22: 0 | AV22: 0 | AW22: 0 | AX22: 0 | AY22: 0.0184 | AZ22: 0.01171578804 | BA22: 0.04160708677 | BB22: 0.02649238096 | BC22: 2 | BD22: 2 | BG22: 0.04160708677
A23: JAAP WH3 | B23: KD0839 | C23: HKD0002 | D23: Site Allocation | E23: 1.842734059 | F23: 1.84 | G23: 0.5694413578 | H23: 0.57 | I23: 0.3097826087 | J23: 0.9265213314 | K23: 0.93 | L23: 0.5054347826 | M23: 0.1956521739 | N23: 1.02587456 | O23: 1.03 | P23: 0.5597826087 | Q23: 0.05434782609 | R23: 0.4402173913 | S23: 0 | T23: 0 | V23: 0 | W23: 0 | X23: 0.018 | Y23: 0.009768094266 | Z23: 0.0196 | AA23: 0.01063636931 | AB23: 0.01063636931 | AC23: 0.0216 | AD23: 0.01172171312 | AE23: 0.01172171312 | AF23: 0 | AG23: 1.02587456 | AH23: 0.5567133002 | AI23: 0 | AJ23: 0 | AK23: 0 | AL23: 0 | AM23: 0 | AN23: 0 | AO23: 1.656899854 | AP23: 0.8991529979 | AQ23: 1.773108267 | AR23: 0.9622160385 | AS23: 0 | AT23: 0 | AU23: 0 | AV23: 0 | AW23: 0 | AX23: 0 | AY23: 0.0156 | AZ23: 0.008465681697 | BA23: 0.03143187 | BB23: 0.01705719273 | BC23: 2 | BD23: 2 | BG23: 0.03143187
A24: JAAP WH4 | B24: N/A | C24: HWG0011 | D24: Achievable | E24: 2.158835873 | F24: 2.16 | G24: 0.03387017165 | H24: 0.03 | I24: 0.01388888889 | J24: 0.716135156 | K24: 0.72 | L24: 0.3333333333 | M24: 0.3194444444 | N24: 1.051653054 | O24: 1.05 | P24: 0.4861111111 | Q24: 0.1527777778 | R24: 0.5138888889 | S24: 0 | T24: 0 | V24: 0 | W24: 0 | X24: 0.1736330615 | Y24: 0.08042902364 | Z24: 0.1965717588 | AA24: 0.09105451751 | AB24: 0.09105451751 | AC24: 0.2277717588 | AD24: 0.105506751 | AE24: 0.105506751 | AF24: 0 | AG24: 1.051653054 | AH24: 0.487138956 | AI24: 0 | AJ24: 0 | AK24: 0 | AL24: 0 | AM24: 0 | AN24: 0 | AO24: 2.156685123 | AP24: 0.9990037455 | AQ24: 2.158835873 | AR24: 1 | AS24: 0 | AT24: 0 | AU24: 0 | AV24: 0 | AW24: 0 | AX24: 0 | AY24: 0.1056330615 | AZ24: 0.04893056615 | BA24: 0.3058573707 | BB24: 0.141676991 | BC24: 3 | BD24: 2 | BG24: 0.3058573707
A25: JAAP WH5 | B25: N/A | C25: HWG0015 | D25: Unachievable | E25: 2.585816036 | F25: 2.59 | G25: 0.2147843659 | H25: 0.21 | I25: 0.08108108108 | J25: 1.550111097 | K25: 1.55 | L25: 0.5984555985 | M25: 0.5173745174 | N25: 1.769355817 | O25: 1.77 | P25: 0.6833976834 | Q25: 0.08494208494 | R25: 0.3166023166 | S25: 0 | T25: 0 | V25: 0 | W25: 0 | X25: 0.1212 | Y25: 0.04687108376 | Z25: 0.132 | AA25: 0.05104771499 | AB25: 0.05104771499 | AC25: 0.138 | AD25: 0.05336806567 | AE25: 0.05336806567 | AF25: 0 | AG25: 1.769355817 | AH25: 0.6842543291 | AI25: 0 | AJ25: 0 | AK25: 0 | AL25: 0 | AM25: 0 | AN25: 0 | AO25: 2.55789248 | AP25: 0.9892012597 | AQ25: 2.56074173 | AR25: 0.9903031362 | AS25: 0.02056223867 | AT25: 0.007951934086 | AU25: 0.026939075 | AV25: 0.01041801684 | AW25: 0.022 | AX25: 0.008507952498 | AY25: 0.0844 | AZ25: 0.03263959958 | BA25: 0.2255062697 | BB25: 0.08720893776 | BC25: 3 | BD25: 4 | BG25: 0.2255062697
A26: JAAP WH6 | B26: BO08186 | C26: HBO0013 | D26: Unachievable | E26: 0.4232666121 | F26: 0.42 | G26: 0 | H26: 0 | I26: 0 | J26: 0.2083584363 | K26: 0.21 | L26: 0.5 | M26: 0.5 | N26: 0.3140645911 | O26: 0.31 | P26: 0.7380952381 | Q26: 0.2380952381 | R26: 0.2619047619 | S26: 0 | T26: 0 | V26: 0 | W26: 0 | X26: 0 | Y26: 0 | Z26: 0 | AA26: 0 | AB26: 0 | AC26: 0 | AD26: 0 | AE26: 0 | AF26: 0 | AG26: 0.3140645911 | AH26: 0.7420018073 | AI26: 0 | AJ26: 0 | AK26: 0 | AL26: 0 | AM26: 0 | AN26: 0 | AO26: 0.4232666121 | AP26: 1 | AQ26: 0.4232666121 | AR26: 1 | AS26: 0 | AT26: 0 | AU26: 0 | AV26: 0 | AW26: 0 | AX26: 0 | AY26: 0 | AZ26: 0 | BA26: 0.05389568303 | BB26: 0.1273327059 | BC26: 2 | BD26: 2 | BG26: 0.05389568303
A27: JAAP WH7 | B27: BO08190 | C27: HBO0016 | D27: Unachievable | E27: 0.8409626513 | F27: 0.84 | G27: 0.1699325428 | H27: 0.17 | I27: 0.2023809524 | J27: 0.8387806359 | K27: 0.84 | L27: 1 | M27: 0.7976190476 | N27: 0.8409626512 | O27: 0.84 | P27: 1 | Q27: 0 | R27: 0 | S27: 0 | T27: 0 | V27: 0 | W27: 0 | X27: 0.00026743257 | Y27: 0.0003180076661 | Z27: 0.0004350372038 | AA27: 0.0005173085905 | AB27: 0.0005173085905 | AC27: 0.01042322215 | AD27: 0.01239439365 | AE27: 0.01239439365 | AF27: 0 | AG27: 0.8409626512 | AH27: 1 | AI27: 0 | AJ27: 0 | AK27: 0 | AL27: 0 | AM27: 0 | AN27: 0 | AO27: 0.8409626512 | AP27: 1 | AQ27: 0.8409626512 | AR27: 1 | AS27: 6.041517913e-05 | AT27: 7.184050212e-05 | AU27: 0.002884020386 | AV27: 0.003429427433 | AW27: 0 | AX27: 0 | AY27: 2.556606499e-05 | AZ27: 3.040095176e-05 | BA27: 0.03269934388 | BB27: 0.03888322963 | BC27: 2 | BD27: 3 | BG27: 0.03269934388
A28: Adur Civic Centre Site, Ham Road | B28: BO08193 | C28: HBO0017 | D28: Unachievable | E28: 0.6387650535 | F28: 0.64 | G28: 0 | H28: 0 | I28: 0 | J28: 0.6387650536 | K28: 0.64 | L28: 1 | M28: 1 | N28: 0.6387650536 | O28: 0.64 | P28: 1 | Q28: 0 | R28: 0 | S28: 0 | T28: 0 | V28: 0 | W28: 0 | X28: 0.08492694144 | Y28: 0.1329548963 | Z28: 0.1122808367 | AA28: 0.1757779892 | AB28: 0.1757779892 | AC28: 0.1377498525 | AD28: 0.2156502642 | AE28: 0.2156502642 | AF28: 0 | AG28: 0.6387650536 | AH28: 1 | AI28: 0 | AJ28: 0 | AK28: 0 | AL28: 0 | AM28: 0 | AN28: 0 | AO28: 0.6387650536 | AP28: 1 | AQ28: 0.6387650536 | AR28: 1 | AS28: 0 | AT28: 0 | AU28: 0 | AV28: 0 | AW28: 0.002960459847 | AX28: 0.004634661572 | AY28: 0.0354144108 | AZ28: 0.05544199796 | BA28: 0.2989385523 | BB28: 0.467994532 | BC28: 4 | BD28: 2 | BG28: 0.2989385523
A29: Police Station, Coop, The Mannings, Ham Road | B29: BB08199 | C29: HBO0006 | D29: Unachievable | E29: 1.109770635 | F29: 1.11 | G29: 0 | H29: 0 | I29: 0 | J29: 0 | K29: 0 | L29: 0 | M29: 0 | N29: 0 | O29: 0 | P29: 0 | Q29: 0 | R29: =1-P29 -> 1 | S29: 0 | T29: 0 | V29: 0 | W29: 0 | X29: 0.000141935 | Y29: 0.0001278957971 | Z29: 0.000141935 | AA29: 0.0001278957971 | AB29: 0.0001278957971 | AC29: 0.0001644402501 | AD29: 0.0001481749876 | AE29: 0.0001481749876 | AF29: 0 | AG29: 0 | AH29: 0 | AI29: 0 | AJ29: 0 | AK29: 0 | AL29: 0 | AM29: 0 | AN29: 0 | AO29: 0.02882186765 | AP29: 0.02597101305 | AQ29: 0.06647816673 | AR29: 0.05990261828 | AS29: 0 | AT29: 0 | AU29: 0 | AV29: 0 | AW29: 0 | AX29: 0 | AY29: 0 | AZ29: 0 | BA29: 0.01193975525 | BB29: 0.0107587594 | BC29: 2 | BD29: 1 | BG29: 0.01193975525
A30: Health Centre, Library, Care home | B30: BB08200 | C30: HBO0007 | D30: Unachievable | E30: 0.5276539576 | F30: 0.53 | G30: 0 | H30: 0 | I30: 0 | J30: 0 | K30: 0 | L30: 0 | M30: 0 | N30: 0 | O30: 0 | P30: 0 | Q30: 0 | R30: 1 | S30: 0 | T30: 0 | V30: 0 | W30: 0 | X30: 0.0168 | Y30: 0.0318390486 | Z30: 0.0232 | AA30: 0.04396820998 | AB30: 0.04396820998 | AC30: 0.0256 | AD30: 0.04851664549 | AE30: 0.04851664549 | AF30: 0 | AG30: 0 | AH30: 0 | AI30: 0 | AJ30: 0 | AK30: 0 | AL30: 0 | AM30: 0 | AN30: 0 | AO30: 0 | AP30: 0 | AQ30: 0 | AR30: 0 | AS30: 0 | AT30: 0 | AU30: 0 | AV30: 0 | AW30: 0 | AX30: 0 | AY30: 0 | AZ30: 0 | BA30: 0 | BB30: 0 | BC30: 2 | BD30: 1 | BG30: 0.07427076
A31: Beach Green Car Park Shoreham, Beach Green | B31: BB08204 | C31: HBO0008 | D31: Unachievable | E31: 0.9256908216 | F31: 0.93 | G31: 0.0001138220341 | H31: 0 | I31: 0 | J31: 0.9256908216 | K31: 0.93 | L31: 1 | M31: 1 | N31: 0.9256908216 | O31: 0.93 | P31: 1 | Q31: 0 | R31: 0 | S31: 0 | T31: 0 | V31: 0 | W31: 0 | X31: 0 | Y31: 0 | Z31: 1.438453503e-05 | AA31: 1.553924345e-05 | AB31: 1.553924345e-05 | AC31: 0.000151612313 | AD31: 0.0001637828846 | AE31: 0.0001637828846 | AF31: 0 | AG31: 0.9256908216 | AH31: 1 | AI31: 0 | AJ31: 0 | AK31: 0 | AL31: 0 | AM31: 0 | AN31: 0 | AO31: 0.9256908216 | AP31: 1 | AQ31: 0.9256908216 | AR31: 1 | AS31: 0 | AT31: 0 | AU31: 0 | AV31: 0 | AW31: 0 | AX31: 0 | AY31: 0 | AZ31: 0 | BA31: 0.08308558137 | BB31: 0.08975521786 | BC31: 3 | BD31: 2 | BG31: 0.08308558137
A32: Former Eastbrook Primary Sch, Manor Hall Rd | B32: CC08208 | C32: HOV0001 | D32: Unachievable | E32: 0.696858165 | F32: 0.7 | G32: 0 | H32: 0 | I32: 0 | J32: 0 | K32: 0 | L32: 0 | M32: 0 | N32: 0 | O32: 0 | P32: 0 | Q32: 0 | R32: 1 | S32: 0 | T32: 0 | V32: 0 | W32: 0 | X32: 0.0272 | Y32: 0.03903233307 | Z32: 0.032 | AA32: 0.04592039185 | AB32: 0.04592039185 | AC32: 0.046 | AD32: 0.06601056328 | AE32: 0.06601056328 | AF32: 0 | AG32: 0 | AH32: 0 | AI32: 0 | AJ32: 0 | AK32: 0 | AL32: 0 | AM32: 0 | AN32: 0 | AO32: 0 | AP32: 0 | AQ32: 0 | AR32: 0 | AS32: 0 | AT32: 0 | AU32: 0.696858165 | AV32: 1 | AW32: 0 | AX32: 0 | AY32: 0.022 | AZ32: 0.0315702694 | BA32: 0.1132404231 | BB32: 0.1625013939 | BC32: 0 | BD32: 0 | BG32: 0.1132404231
A33: Overhill Site Southwick | B33: CC08213A | C33: HOV0002 | D33: Planning Permission | E33: 2.900524788 | F33: 2.9 | G33: 0 | H33: 0 | I33: 0 | J33: 0 | K33: 0 | L33: 0 | M33: 0 | N33: 0 | O33: 0 | P33: 0 | Q33: 0 | R33: 1 | S33: 0 | T33: 0 | V33: 0 | W33: 0 | X33: 0.2839013593 | Y33: 0.09787930805 | Z33: 0.3151013593 | AA33: 0.1086359822 | AB33: 0.1086359822 | AC33: 0.3378555733 | AD33: 0.1164808433 | AE33: 0.1164808433 | AF33: 0 | AG33: 0 | AH33: 0 | AI33: 0 | AJ33: 0 | AK33: 0 | AL33: 0 | AM33: 0 | AN33: 0 | AO33: 0 | AP33: 0 | AQ33: 0 | AR33: 0 | AS33: 0 | AT33: 0 | AU33: 0 | AV33: 0 | AW33: 0.04161384 | AX33: 0.01434700375 | AY33: 0.198355014 | AZ33: 0.06838590546 | BA33: 0.198355014 | BB33: 0.06838590546 | BC33: 0 | BD33: 0 | BG33: 0.4537870611
A34: Lancing Police Station, North Road | B34: N/A | C34: HOV0004 | D34: Planning Permission | E34: 0.1120511279 | F34: 0.11 | G34: 0 | H34: 0 | I34: 0 | J34: 0 | K34: 0 | L34: 0 | M34: =L34-I34 -> 0 | N34: 0 | O34: 0 | P34: 0 | Q34: 0 | R34: 1 | S34: 0 | T34: 0 | V34: 0 | W34: 0 | X34: 0 | Y34: 0 | Z34: 0 | AA34: 0 | AB34: 0 | AC34: 0 | AD34: 0 | AE34: 0 | AF34: 0 | AG34: 0 | AH34: 0 | AI34: 0 | AJ34: 0 | AK34: 0 | AL34: 0 | AM34: 0 | AN34: 0 | AO34: 0 | AP34: 0 | AQ34: 0 | AR34: 0 | AS34: 0.05291320145 | AT34: 0.4722237287 | AU34: 0.0591379358 | AV34: 0.5277763543 | AW34: 0 | AX34: 0 | AY34: 0 | AZ34: 0 | BA34: 0 | BB34: 0 | BC34: 0 | BD34: 0 | BG34: 0
A35: Mill Hill Site, Shoreham | B35: FB08226 | C35: HFB0006 | D35: Achievable | E35: 5.83336016 | F35: 5.83 | G35: 0 | H35: 0 | I35: 0 | J35: 0 | K35: 0 | L35: 0 | M35: 0 | N35: 0 | O35: 0 | P35: 0 | Q35: 0 | R35: 1 | S35: 0 | T35: 0 | V35: 0 | W35: 0 | X35: 0 | Y35: 0 | Z35: 0 | AA35: 0 | AB35: 0 | AC35: 0 | AD35: 0 | AE35: 0 | AF35: 0 | AG35: 0 | AH35: 0 | AI35: 0 | AJ35: 0 | AK35: 0 | AL35: 0 | AM35: 0 | AN35: 0 | AO35: 0 | AP35: 0 | AQ35: 0 | AR35: 0 | AS35: 0 | AT35: 0 | AU35: 0 | AV35: 0 | AW35: 0 | AX35: 0 | AY35: 0 | AZ35: 0 | BA35: 0 | BB35: 0 | BC35: 1 | BD35: 1 | BG35: 0
A36: Shoreham Gateway Site | B36: FB08229 | C36: HFB0009 | D36: Unachievable | E36: 2.331909295 | F36: 2.33 | G36: 0 | H36: 0 | I36: 0 | J36: 2.331909295 | K36: 2.33 | L36: 1 | M36: 1 | N36: 2.331909295 | O36: 2.33 | P36: 1 | Q36: 0 | R36: 0 | S36: 0 | T36: 0 | V36: 0 | W36: 0 | X36: 0.5690618876 | Y36: 0.2440325998 | Z36: 0.6362200839 | AA36: 0.2728322604 | AB36: 0.2728322604 | AC36: 0.7023430632 | AD36: 0.3011879856 | AE36: 0.3011879856 | AF36: 1 | AG36: 2.331909295 | AH36: 1 | AI36: 0 | AJ36: 0 | AK36: 0 | AL36: 0 | AM36: 0 | AN36: 0 | AO36: 2.331909295 | AP36: 1 | AQ36: 2.331909295 | AR36: 1 | AS36: 0 | AT36: 0 | AU36: 0 | AV36: 0 | AW36: 0.2017715675 | AX36: 0.08652633613 | AY36: 0.4625700782 | AZ36: 0.198365382 | BA36: 1.07087392 | BB36: 0.4592262326 | BC36: 4 | BD36: 2 | BG36: 1.07087392
A37: New Salts Farm Site Lancing | B37: HT08283 | C37: HSB0005 | D37: Achievable | E37: 29.23984846 | F37: 29.24 | G37: 0 | H37: 0 | I37: 0 | J37: 29.23559932 | K37: 29.24 | L37: 1 | M37: 1 | N37: 29.23883352 | O37: 29.24 | P37: 1 | Q37: 0 | R37: 0 | S37: 2.134516411 | T37: 0.0730002556 | V37: 0 | W37: 0 | X37: 0.5379857335 | Y37: 0.01839906025 | Z37: 0.7554178894 | AA37: 0.02583521903 | AB37: 0.02583521903 | AC37: 1.002040497 | AD37: 0.03426968845 | AE37: 0.03426968845 | AF37: 0 | AG37: 29.23883352 | AH37: 0.9999652893 | AI37: 0 | AJ37: 0 | AK37: 0 | AL37: 0 | AM37: 0 | AN37: 0 | AO37: 29.23984846 | AP37: 1 | AQ37: 29.23984846 | AR37: 1 | AS37: 0.1136549376 | AT37: 0.003886987917 | AU37: 0.1235891401 | AV37: 0.004226736682 | AW37: 0.042 | AX37: 0.001436395953 | AY37: 0.2459411206 | AZ37: 0.008411162629 | BA37: 3.284299473 | BB37: 0.1123227255 | BC37: 3 | BD37: 4 | BG37: 3.284299473
A38: Old Salts Farm Site, Lancing | B38: HN08235 | C38: HHN0005 | D38: Site Allocation | E38: 13.84655558 | F38: 13.85 | G38: 0 | H38: 0 | I38: 0 | J38: 13.0636727 | K38: 13.06 | L38: 0.9429602888 | M38: 0.9429602888 | N38: 13.15330397 | O38: 13.15 | P38: 0.9494584838 | Q38: 0.006498194946 | R38: 0.05054151625 | S38: 2.512793692 | T38: 0.1814742792 | V38: 0 | W38: 0 | X38: 0.9565969283 | Y38: 0.0690855515 | Z38: 1.166950852 | AA38: 0.08427733852 | AB38: 0.08427733852 | AC38: 1.355742399 | AD38: 0.097911888 | AE38: 0.097911888 | AF38: 2 | AG38: 13.15330397 | AH38: 0.9499332812 | AI38: 0 | AJ38: 0 | AK38: 0 | AL38: 0 | AM38: 0 | AN38: 0 | AO38: 13.84655558 | AP38: 1 | AQ38: 13.84655558 | AR38: 1 | AS38: 0.6631910752 | AT38: 0.04789574357 | AU38: 0.8146485807 | AV38: 0.05883402383 | AW38: 0.01678481122 | AX38: 0.001212201195 | AY38: 0.5139557585 | AZ38: 0.03711795007 | BA38: 2.345342816 | BB38: 0.1693809557 | BC38: 4 | BD38: 4 | BG38: 2.345342816
A39: New Monks Farm Strategic Site | B39: N/A | C39: HNM0009 | D39: Achievable | E39: 58.6851609 | F39: 58.69 | G39: 0 | H39: 0 | I39: 0 | J39: 20.67499312 | K39: 20.67 | L39: 0.3521894701 | M39: 0.3521894701 | N39: 25.02481806 | O39: 25.02 | P39: 0.4263077185 | Q39: 0.07411824842 | R39: 0.5736922815 | S39: 0 | T39: 0 | V39: 0 | W39: 0 | X39: 6.001573261 | Y39: 0.1022673052 | Z39: 7.233385885 | AA39: 0.1232574943 | AB39: 0.1232574943 | AC39: 8.047050661 | AD39: 0.1371224094 | AE39: 0.1371224094 | AF39: 1 | AG39: 25.02481806 | AH39: 0.4264249714 | AI39: 0 | AJ39: 0 | AK39: 0 | AL39: 0 | AM39: 0 | AN39: 0 | AO39: 56.15573483 | AP39: 0.9568983703 | AQ39: 57.12777488 | AR39: 0.9734620132 | AS39: 18.08987222 | AT39: 0.3082529201 | AU39: 0 | AV39: 0 | AW39: 1.07800814 | AX39: 0.01836934795 | AY39: 3.894686919 | AZ39: 0.06636578753 | BA39: 11.5226756 | BB39: 0.1963473462 | BC39: 3 | BD39: 4 | BG39: 11.5226756
A40: The Pilot PH, Station Rd, Southwick | B40: SY08314 | C40: HSY0005 | D40: Planning Permission | E40: 0.10994825 | F40: 0.11 | G40: 0 | H40: 0 | I40: 0 | J40: 0 | K40: 0 | L40: 0 | M40: 0 | N40: 0 | O40: 0 | P40: 0 | Q40: 0 | R40: 1 | S40: 0 | T40: 0 | V40: 0 | W40: 0 | X40: 0 | Y40: 0 | Z40: 0 | AA40: 0 | AB40: 0 | AC40: 0 | AD40: 0 | AE40: 0 | AF40: 0 | AG40: 0 | AH40: 0 | AI40: 0 | AJ40: 0 | AK40: 0 | AL40: 0 | AM40: 0 | AN40: 0 | AO40: 0 | AP40: 0 | AQ40: 0 | AR40: 0 | AS40: 0 | AT40: 0 | AU40: 0 | AV40: 0 | AW40: 0 | AX40: 0 | AY40: 0 | AZ40: 0 | BA40: 0 | BB40: 0 | BC40: 1 | BD40: 0 | BG40: 0
A41: West Sompting Strategic Site | B41: HT08337 | C41: HSB0007 | D41: Achievable | E41: 29.74037799 | F41: 29.74 | G41: 0.03153125864 | H41: 0.03 | I41: 0.001008742434 | J41: 0.03153129742 | K41: 0.03 | L41: 0.001008742434 | M41: 0 | N41: 0.1358877992 | O41: 0.14 | P41: 0.004707464694 | Q41: 0.00369872226 | R41: 0.9952925353 | S41: 0 | T41: 0 | V41: 0 | W41: 0 | X41: 0.7366161043 | Y41: 0.02476821594 | Z41: 0.8738402069 | AA41: 0.02938228314 | AB41: 0.02938228314 | AC41: 0.9940003254 | AD41: 0.03342258547 | AE41: 0.03342258547 | AF41: 1 | AG41: 0.1358877992 | AH41: 0.004569134907 | AI41: 0 | AJ41: 0 | AK41: 0 | AL41: 0 | AM41: 0 | AN41: 0 | AO41: 0 | AP41: 0 | AQ41: 0 | AR41: 0 | AS41: 13.48188417 | AT41: 0.4533191938 | AU41: 0.7825224796 | AV41: 0.02631178662 | AW41: 0.08070453 | AX41: 0.002713634979 | AY41: 0.5049244557 | AZ41: 0.0169777417 | BA41: 1.964681598 | BB41: 0.06606108363 | BC41: 3 | BD41: 4 | BG41: 1.964681598
A42: Shoreham Airport Strategic Site | E42: 6.760246979 | F42: =ROUND(E42,2) -> 6.76 | G42: 0.2199352819 | H42: =ROUND(G42,2) -> 0.22 | I42: =H42/F42 -> 0.0325443787 | J42: 6.745175805 | K42: =ROUND(J42,2) -> 6.75 | L42: =K42/F42 -> 0.9985207101 | M42: =L42-I42 -> 0.9659763314 | N42: 6.758955886 | O42: =ROUND(N42,2) -> 6.76 | P42: =O42/F42 -> 1 | Q42: =P42-L42 -> 0.001479289941 | R42: =1-P42 -> 0 | S42: 1.105085934 | T42: =S42/E42 -> 0.1634682782 | V42: 0 | W42: =V42/E42 -> 0 | X42: 0.5667 | Y42: =X42/E42 -> 0.08382829825 | Z42: 0.5667 | AA42: =Z42/E42 -> 0.08382829825 | AB42: =Z42/E42 -> 0.08382829825 | AC42: 0.5667 | AD42: =AC42/E42 -> 0.08382829825 | AE42: =AC42/E42 -> 0.08382829825 | AF42: 0 | AG42: 6.758955886 | AH42: =AG42/E42 -> 0.9998090169 | AI42: 0 | AJ42: 0 | AK42: 0 | AL42: 0 | AM42: 0 | AN42: 0 | AO42: 6.760246979 | AP42: =AO42/E42 -> 1 | AQ42: 6.760246979 | AR42: =AQ42/E42 -> 1 | AS42: 0 | AT42: =AS42/E42 -> 0 | AU42: 0 | AV42: =AU42/E42 -> 0 | AW42: 0 | AX42: =AW42/E42 -> 0 | AY42: 0.05667 | AZ42: =AY42/E42 -> 0.008382829825 | BA42: 0.1400335231 | BB42: =BA42/E42 -> 0.02071426141 | BC42: 2 | BD42: 2 | BG42: 0.1400335231
AJ67: =AI67/E67 ->  | AL67: =AK67/E67 ->  | AN67: =AM67/E67 -> 

Sheet Sites
A1: Authority | B1: FID | C1: AREA | D1: SHLAA_Name | E1: SHLAA_ID | F1: Preferred_ | G1: Issues_Opt | H1: Core_Strat | I1: AREA
A2: Worthing | B2: 0 | C2: 1.460994721 | D2: Worthing United Football Club | E2: WB08162 | F2: OS3: Worthing United Football Club | G2: Worthing United Football Club | H2: N/A | I2: 0
B3: 1 | C3: 2.829801781 | D3: Land North of Beeches Avenue | E3: WB08176 | F3: OS2: Land north of Beeches Avenue | G3: North of Beeches Avenue | H3: N/A | I3: 0
B4: 2 | C4: 5.825191904 | D4: Land South of Upper Brighton Road | E4: WB08163 | F4: A3: Land at Upper Brighton Road | G4: Upper Brighton Road | H4: N/A | I4: 0
B5: 3 | C5: 2.001757117 | D5: Land Site West of Fulbeck Avenue | E5: WB08183 | F5: A2: Land west of Fulbeck Avenue | G5: West of Fulbeck Avenue | H5: N/A | I5: 0
B6: 4 | C6: 6.981937832 | D6: (Part of) Phase 1 West Durrington | E6: (Part of) WB08036 | F6: OS1: Land east of Titnore Lane | G6: N/A | H6: (Part of) West Durrington Strategic Allocation Phase 1 | I6: 0
B7: 5 | C7: 0.672703598 | D7: Bus Depot, Library Place | E7: WB08046 | F7: AOC3: Stagecoach Bus Depot, Library Place | G7: Area of Change 2 Stagecoach Site, Marine Parade | H7: Area of Change 2 Marine Parade: Stagecoach Site | I7: 0
B8: 6 | C8: 0.7660365785 | D8: Grafton MSCP and part of Land at 51-93 Montague Street | E8: WB08180 and part of WB08045 | F8: A7: Grafton Site, Marine Parade | G8: Area of Change 3 Grafton Site | H8: (Includes) Area of Change 3 Grafton Site | I8: 0
B9: 7 | C9: 0.6014365072 | D9: Police Station Site (plus area of parking to east) | E9: WB08042 (plus area of parking to east) | F9: A6: Union Place (Corner of Union Place and Hight Street) | G9: Area of Change 4 Union Place South | H9: (Part of) Area of Change 4 Union Place South | I9: 0
B10: 8 | C10: 1.148889196 | D10: Gas Holder Station, Lyndhurst Road | E10: WB08048 | F10: AOC2: British Gas Site, Lyndhurst Road | G10: Area of Change 6 British Gas Site, Lyndhurst Road | H10: Area of Change 7 British Gas Site - Lyndhurst Road | I10: 0
B11: 9 | C11: 3.033716926 | D11: Land Rear of Juno Close & Land Former Sewage Works, Barrington Road | E11: WB08058 & WB08038 | F11: AOC6: Martletts Way | G11: (Part of) Area of Change 7 Martletts Way | H11: (Part of) Area of Change 8 Land Adjacent to Martletts Way | I11: 0
B12: 10 | C12: 7.356721215 | D12: Land Site Decoy Farm, Dominion Way | E12: WB08059 | F12: A4: Decoy Farm, East Worthing | G12: Area of Change 8 Decoy Farm | H12: Area of Change 12 Decoy Farm | I12: 0
B13: 11 | C13: 6.730725356 | D13: Inland Revenue Office, Durrington | E13: WB13002 | F13: AOC5: HMRC Offices, Barrington Road | G13: Area of Change 9 HMRC Offices, Barrington Road | H13: N/A | I13: 0
B14: 12 | C14: 4.106715221 | D14: Centenary House | E14: WB16006 | F14: AOC1: Centenary House | G14: N/A | H14: N/A | I14: 0
B15: 13 | C15: 6.812413633 | D15: Worthing Leisure Centre, Shaftesbury Avenue | E15: WB08054 | F15: AOC4: Worthing Leisure Centre | G15: N/A | H15: N/A | I15: 0
B16: 14 | C16: 0.4842268888 | D16: (Includes) Land South of Stoke Abbott Road | E16: (Includes) WB08044 | F16: A8: Civic Centre Car Park | G16: N/A | H16: N/A | I16: 0
B17: 15 | C17: 1.752553969 | D17: Teville Gate, Railway Approach | E17: WB08039 | F17: A5: Teville Gate | G17: Area of Change 5 Teville Gate | H17: Area of Change 5 Teville Gate | I17: 0
B18: 16 | C18: 2.550144438 | D18: Caravan Club | E18: (Part of) WB08138 | F18: A1: Caravan Club, Titnore Way | G18: (Part of) Caravan Club, Titnore Way | H18: N/A | I18: 0
B19: 17 | C19: 30.1487974 | D19: Local Green Space (LGS): Goring-Ferring Gap | F19: Local Green Space (LGS): Goring-Ferring Gap | G19: LGS valued by the community for its: historic associations; views contributing strongly to a sense of place; wildlife; opportunities for birdwatching, stargazing, and quiet recreation in an area of relative tranquility | H19: SP6 Local Green Space | I19: 0
B20: 18 | C20: 28.49514153 | D20: Local Green Space (LGS): Chatsmore Farm | F20: Local Green Space (LGS): Chatsmore Farm | G20: Local Green Space valued by the community for its: setting to the historic environment and the SDNP; views contributing strongly to a sense of place; wildlife especially along the Ferring Rife; offer of tranquility to escape from the urban area and relax | I20: 0
A21: Adur | B21: 19 | C21: 0.503251058 | D21: JAAP WH1 | E21: JAAP WH1 | I21: 0
B22: 20 | C22: 1.570530291 | D22: JAAP WH2 | E22: JAAP WH2 | I22: 0
B23: 21 | C23: 1.842734059 | D23: JAAP WH3 | E23: JAAP WH3 | I23: 0
B24: 22 | C24: 2.158835873 | D24: JAAP WH4 | E24: JAAP WH4 | I24: 0
B25: 23 | C25: 2.585816036 | D25: JAAP WH5 | E25: JAAP WH5 | I25: 0
B26: 24 | C26: 0.4232666121 | D26: JAAP WH6 | E26: JAAP WH6 | I26: 0
B27: 25 | C27: 0.8409626513 | D27: JAAP WH7 | E27: JAAP WH7 | I27: 0
B28: 26 | C28: 0.6387650535 | D28: Adur Civic Centre Site, Ham Road | I28: 0
B29: 27 | C29: 1.109770635 | D29: Police Station, Coop, The Mannings, Ham Road | I29: 0
B30: 28 | C30: 0.5276539576 | D30: Health Centre, Library, Care home | I30: 0
B31: 29 | C31: 0.9256908216 | D31: Beach Green Car Park Shoreham, Beach Green | I31: 0
B32: 30 | C32: 0.696858165 | D32: Former Eastbrook Primary Sch, Manor Hall Rd | I32: 0
B33: 31 | C33: 2.900524788 | D33: Overhill Site Southwick | I33: 0
B34: 32 | C34: 0.1120511279 | D34: Lancing Police Station, North Road | I34: 0
B35: 33 | C35: 5.83336016 | D35: Mill Hill Site, Shoreham | I35: 0
B36: 34 | C36: 2.331909295 | D36: Shoreham Gateway Site | I36: 0
B37: 35 | C37: 29.23984846 | D37: New Salts Farm Site Lancing | I37: 0
B38: 36 | C38: 13.84655558 | D38: Old Salts Farm Site, Lancing | I38: 0
B39: 37 | C39: 58.6851609 | D39: New Monks Farm Strategic Site | I39: 0
B40: 38 | C40: 0.10994825 | D40: The Pilot PH, Station Rd, Southwick | I40: 0
B41: 39 | C41: 29.74037799 | D41: West Sompting Strategic Site | I41: 0
B42: 40 | C42: 6.760246979 | D42: Shoreham Airport Strategic Site | I42: 0
